{"text_format":"3","workbook":"xlsx","n_sheets":7,"sheets":["Reflow","Table 1","Table 2","Graph","Annex","Annex 1 11 12 2024","Annex 1 11 13 2024"],"not_rendered":{"charts":2,"defined_names":104,"comments":2},"read":"whole","date_system":"1900"}

{"sheet":"Reflow","index":0,"n_rows":2,"n_cols":73,"rows_kept":2}
["GEF ID","Agency","Project Status","GEF Phase","Project Title","Investment #","Name of sub projects","Region\n/Country","Sub project status","Non-Grant Investment Amount","Investment Co-financing","Estimated Investment Reflow according to GEF records (base)","Estimated Investment Reflow according to GEF records (bull)","Estimated Investment Reflow according to GEF records (bear)","Actual Investment Reflow\n(As of June 30 2025)\nFrom Trustee","Remaining Expected Reflows","Board/Agency Approval Date","Disbursement Date","Type of Non-Grant Instrument ","Currency risk","Exchange rate at disbursement","Return (IRR %), interest rate (ref rate+spread) or premium (%) as applicable","Frequency of return (quarterly, semi-annually, annually)","Reflow Start Date","Reflow End Date","Reflow Period (Years)","Total of Estimated Investment Reflow Calendar Year Reflows","QC","Total of Estimated Future Calendar Year Reflows","QC","Before 2017",2017,2018,2019,2020,2021,2022,2023,2024,2025,2026,2027,2028,2029,2030,2031,2032,2033,2034,2035,2036,2037,2038,2039,2040,{"$f":"BC1+1","v":2041},{"$f":"BD1+1","v":2042},2043,2044,2045,2046,2047,2048,2049,2050,2051,2052,2053,2054,2055,2056,2057,2058]
[9914,"IUCN","Under Implementation","GEF - 6","CPIC Conservation Finance Initiative - Scaling up and Demonstrating the Value of Blended Finance in Conservation",null,null,"CEX",null,{"v":7950000,"d":"$7,950,000"},{"v":52838000,"d":"$52,838,000"},{"v":6206429.27,"d":"$6,206,429"},null,null,{"v":0,"d":"$0"},{"$f":"L2-O2","v":{"v":6206429.27,"d":"$6,206,429"}},"2019-05-03","2022-07-25","Equity","No","NA",{"v":-0.05,"d":"-5%"},"one time","2025-12-31","2025-12-31",3,{"$f":"SUM(AE2:BU2)","v":{"v":6206429.27,"d":"$6,206,429"}},{"$f":"AA2-L2","v":0},{"$f":"SUM(AN2:BU2)","v":{"v":6206429.27,"d":"$6,206,429"}},{"$f":"AC2-P2","v":0},{"$nulls":9},{"v":6206429.27,"d":"$6,206,429.27"},{"$nulls":6},0]

{"sheet":"Table 1","index":1,"n_rows":44,"n_cols":25,"rows_kept":44,"merged":[[3,2,5,2],[7,2,11,2],[12,2,21,2],[22,2,27,2],[30,0,30,6],[31,1,31,8],[37,2,43,2]]}
["GEF ID","Agency","GEF Phase","Program Title","Country/ Countries","Focal Area (s)","Type of Non-Grant Instrument ","GEF Non-Grant Investment Amount \n(million USD) 11","Investment \nCo-financing \n(million USD)","Reflows generated as of June 2022 (million USD)","Reflows generated as of June 2024 (million USD) 12","FY22-FY23 difference","Remaining Expected Reflows \n(million USD)","Estimated Investment Reflow - FY23\n (million USD)","Estimated Investment Reflow\n (million USD) 13","FY24-23 difference","Reflow Start Date","Reflow End Date","Scenario 1: Best Case Scenario - FY23","Scenario 1: Best Case Scenario","FY24-23 difference","Scenario 2: Worst Case Scenario - FY23","Scenario 2: Worst Case Scenario","FY24-23 difference","Note"]
[111,"WB","GEF - 1","IFC Energy Efficiency Co-financing Project","Hungary","CCM","Guarantee",{"$f":"VLOOKUP($A2, Reflow_FY22[], 10, FALSE)*10^(-6)","v":{"$error":"#N/A"}},{"$f":"VLOOKUP($A2, Reflow_FY22[], 11, FALSE)*10^(-6)","v":{"$error":"#N/A"}},{"v":0.996597,"d":"1.0"},{"$f":"VLOOKUP($A2, Reflow_FY22[], 15, FALSE)*10^(-6)","v":{"$error":"#N/A"}},{"$f":"IFERROR((K2-J2), 0)","v":{"v":0,"d":"0.00"}},{"$f":"VLOOKUP($A2, Reflow_FY22[], 16, FALSE)*10^(-6)","v":{"$error":"#N/A"}},{"v":0.996597,"d":"1.0"},{"$f":"VLOOKUP($A2, Reflow_FY22[], 12, FALSE)*10^(-6)","v":{"$error":"#N/A"}},{"$f":"IFERROR((O2-N2)/N2, 0)","v":{"v":0,"d":"0%"}},null,2007,{"v":0.996597,"d":"1.0"},{"$f":"VLOOKUP($A2, Reflow_FY22[], 13, FALSE)*10^(-6)","v":{"$error":"#N/A"}},{"$f":"IFERROR((T2-S2)/S2, 0)","v":{"v":0,"d":"0%"}},{"v":0.996597,"d":"1.0"},{"$f":"VLOOKUP($A2, Reflow_FY22[], 14, FALSE)*10^(-6)","v":{"$error":"#N/A"}},{"$f":"IFERROR((W2-V2)/V2, 0)","v":{"v":0,"d":"0%"}},"Fully paid back"]
[1541,"WB","GEF - 2","IFC Commercializing Energy Efficiency Finance (CEEF) - Tranche I","ECA","CCM","Guarantee",{"$f":"VLOOKUP($A3, Reflow_FY22[], 10, FALSE)*10^(-6)","v":{"$error":"#N/A"}},{"$f":"VLOOKUP($A3, Reflow_FY22[], 11, FALSE)*10^(-6)","v":{"$error":"#N/A"}},{"v":10.319687,"d":"10.3"},{"$f":"VLOOKUP($A3, Reflow_FY22[], 15, FALSE)*10^(-6)","v":{"$error":"#N/A"}},{"$f":"IFERROR((K3-J3), 0)","v":{"v":0,"d":"0.00"}},{"$f":"VLOOKUP($A3, Reflow_FY22[], 16, FALSE)*10^(-6)","v":{"$error":"#N/A"}},{"v":10.319687,"d":"10.3"},{"$f":"VLOOKUP($A3, Reflow_FY22[], 12, FALSE)*10^(-6)","v":{"$error":"#N/A"}},{"v":0,"d":"0%"},null,2013,{"v":10.319687,"d":"10.3"},{"$f":"VLOOKUP($A3, Reflow_FY22[], 13, FALSE)*10^(-6)","v":{"$error":"#N/A"}},{"$f":"IFERROR((T3-S3)/S3, 0)","v":{"v":0,"d":"0%"}},{"v":10.319687,"d":"10.3"},{"$f":"VLOOKUP($A3, Reflow_FY22[], 14, FALSE)*10^(-6)","v":{"$error":"#N/A"}},{"$f":"IFERROR((W3-V3)/V3, 0)","v":{"v":0,"d":"0%"}},"Fully paid back"]
[2174,"WB","GEF - 3","IFC Commercializing Energy Efficiency Finance (CEEF) - Tranche II","ECA","CCM","Guarantee",{"$f":"VLOOKUP($A4, Reflow_FY22[], 10, FALSE)*10^(-6)","v":{"$error":"#N/A"}},{"$f":"VLOOKUP($A4, Reflow_FY22[], 11, FALSE)*10^(-6)","v":{"$error":"#N/A"}},{"v":6.75,"d":"6.8"},{"$f":"VLOOKUP($A4, Reflow_FY22[], 15, FALSE)*10^(-6)","v":{"$error":"#N/A"}},{"v":0,"d":"0.00"},{"$f":"VLOOKUP($A4, Reflow_FY22[], 16, FALSE)*10^(-6)","v":{"$error":"#N/A"}},{"v":6.75,"d":"6.8"},{"$f":"VLOOKUP($A4, Reflow_FY22[], 12, FALSE)*10^(-6)","v":{"$error":"#N/A"}},{"v":0,"d":"0%"},null,2018,{"v":6.75,"d":"6.8"},{"$f":"VLOOKUP($A4, Reflow_FY22[], 13, FALSE)*10^(-6)","v":{"$error":"#N/A"}},{"v":0,"d":"0%"},{"v":6.75,"d":"6.8"},{"$f":"VLOOKUP($A4, Reflow_FY22[], 14, FALSE)*10^(-6)","v":{"$error":"#N/A"}},{"v":0,"d":"0%"},"Fully paid back"]
[2000,"WB",null,"IFC Environmental Business Finance Program (EBFP)","Global","CCM","Guarantee",{"$f":"VLOOKUP($A5, Reflow_FY22[], 10, FALSE)*10^(-6)","v":{"$error":"#N/A"}},{"$f":"VLOOKUP($A5, Reflow_FY22[], 11, FALSE)*10^(-6)","v":{"$error":"#N/A"}},{"v":7.231522679999999,"d":"7.2"},{"$f":"VLOOKUP($A5, Reflow_FY22[], 15, FALSE)*10^(-6)","v":{"$error":"#N/A"}},{"v":0,"d":"0.00"},{"$f":"VLOOKUP($A5, Reflow_FY22[], 16, FALSE)*10^(-6)","v":{"$error":"#N/A"}},{"v":17.231523,"d":"17.2"},{"$f":"VLOOKUP($A5, Reflow_FY22[], 12, FALSE)*10^(-6)","v":{"$error":"#N/A"}},{"v":0,"d":"0%"},null,2027,{"v":17.231523,"d":"17.2"},{"$f":"VLOOKUP($A5, Reflow_FY22[], 13, FALSE)*10^(-6)","v":{"$error":"#N/A"}},{"v":0,"d":"0%"},{"v":17.231523,"d":"17.2"},{"$f":"VLOOKUP($A5, Reflow_FY22[], 14, FALSE)*10^(-6)","v":{"$error":"#N/A"}},{"v":0,"d":"0%"},"Fully paid back"]
[2108,"WB",null,"Philippines Sustainable Energy Finance Program","Philippines","CCM","Guarantee",{"$f":"VLOOKUP($A6, Reflow_FY22[], 10, FALSE)*10^(-6)","v":{"$error":"#N/A"}},{"$f":"VLOOKUP($A6, Reflow_FY22[], 11, FALSE)*10^(-6)","v":{"$error":"#N/A"}},{"v":0,"d":"0.0"},{"$f":"VLOOKUP($A6, Reflow_FY22[], 15, FALSE)*10^(-6)","v":{"$error":"#N/A"}},{"v":0,"d":"0.00"},{"$f":"VLOOKUP($A6, Reflow_FY22[], 16, FALSE)*10^(-6)","v":{"$error":"#N/A"}},{"v":1.67818057,"d":"1.7"},{"$f":"VLOOKUP($A6, Reflow_FY22[], 12, FALSE)*10^(-6)","v":{"$error":"#N/A"}},{"v":0,"d":"0%"},null,2023,{"v":0,"d":"0.0"},{"$f":"VLOOKUP($A6, Reflow_FY22[], 13, FALSE)*10^(-6)","v":{"$error":"#N/A"}},{"$f":"IFERROR((T6-S6)/S6, 0)","v":{"v":0,"d":"0%"}},{"v":0,"d":"0.0"},{"$f":"VLOOKUP($A6, Reflow_FY22[], 14, FALSE)*10^(-6)","v":{"$error":"#N/A"}},{"$f":"IFERROR((W6-V6)/V6, 0)","v":{"v":0,"d":"0%"}},"Fully paid back"]
[4257,"WB","GEF - 4","IFC Earth Fund","Global","CCM BD IW","Debt, Equity, Guarantee",{"$f":"VLOOKUP($A7, Reflow_FY22[], 10, FALSE)*10^(-6)","v":{"$error":"#N/A"}},{"$f":"VLOOKUP($A7, Reflow_FY22[], 11, FALSE)*10^(-6)","v":{"$error":"#N/A"}},{"v":10.567105,"d":"10.6"},{"$f":"VLOOKUP($A7, Reflow_FY22[], 15, FALSE)*10^(-6)","v":{"$error":"#N/A"}},{"v":0,"d":"0.00"},{"$f":"VLOOKUP($A7, Reflow_FY22[], 16, FALSE)*10^(-6)","v":{"$error":"#N/A"}},{"v":12.011913,"d":"12.0"},{"$f":"VLOOKUP($A7, Reflow_FY22[], 12, FALSE)*10^(-6)","v":{"$error":"#N/A"}},{"v":0,"d":"0%"},null,2026,{"v":12.011913,"d":"12.0"},{"$f":"VLOOKUP($A7, Reflow_FY22[], 13, FALSE)*10^(-6)","v":{"$error":"#N/A"}},{"v":0,"d":"0%"},{"v":12.011913,"d":"12.0"},{"$f":"VLOOKUP($A7, Reflow_FY22[], 14, FALSE)*10^(-6)","v":{"$error":"#N/A"}},{"v":0,"d":"0%"},"Fully paid back"]
[4959,"IADB","GEF - 5","IDB PPP Program","Latin America","CCM BD","Equity",{"$f":"VLOOKUP($A8, Reflow_FY22[], 10, FALSE)*10^(-6)","v":{"$error":"#N/A"}},{"$f":"VLOOKUP($A8, Reflow_FY22[], 11, FALSE)*10^(-6)","v":{"$error":"#N/A"}},{"v":4.69171816,"d":"4.7"},{"$f":"VLOOKUP($A8, Reflow_FY22[], 15, FALSE)*10^(-6)","v":{"$error":"#N/A"}},{"v":0,"d":"0.00"},{"$f":"VLOOKUP($A8, Reflow_FY22[], 16, FALSE)*10^(-6)","v":{"$error":"#N/A"}},{"v":15.97463,"d":"16.0"},{"$f":"VLOOKUP($A8, Reflow_FY22[], 12, FALSE)*10^(-6)","v":{"$error":"#N/A"}},{"v":0,"d":"0%"},2017,2029,{"v":15.97463,"d":"16.0"},{"$f":"VLOOKUP($A8, Reflow_FY22[], 13, FALSE)*10^(-6)","v":{"$error":"#N/A"}},{"v":0,"d":"0%"},{"v":4.944738259999999,"d":"4.9"},{"$f":"VLOOKUP($A8, Reflow_FY22[], 14, FALSE)*10^(-6)","v":{"$error":"#N/A"}},{"v":0,"d":"0%"}]
[5388,"IADB",null,"Sustainable Caribbean Energy Fund","Caribbean Basin","CCM","Equity",{"$f":"VLOOKUP($A9, Reflow_FY22[], 10, FALSE)*10^(-6)","v":{"$error":"#N/A"}},{"$f":"VLOOKUP($A9, Reflow_FY22[], 11, FALSE)*10^(-6)","v":{"$error":"#N/A"}},{"v":0.176482,"d":"0.2"},{"$f":"VLOOKUP($A9, Reflow_FY22[], 15, FALSE)*10^(-6)","v":{"$error":"#N/A"}},{"v":0,"d":"0.00"},{"$f":"VLOOKUP($A9, Reflow_FY22[], 16, FALSE)*10^(-6)","v":{"$error":"#N/A"}},{"v":16.575,"d":"16.6"},{"$f":"VLOOKUP($A9, Reflow_FY22[], 12, FALSE)*10^(-6)","v":{"$error":"#N/A"}},{"v":0,"d":"0%"},2021,2030,{"v":16.575,"d":"16.6"},{"$f":"VLOOKUP($A9, Reflow_FY22[], 13, FALSE)*10^(-6)","v":{"$error":"#N/A"}},{"v":0,"d":"0%"},{"v":0.176482,"d":"0.2"},{"$f":"VLOOKUP($A9, Reflow_FY22[], 14, FALSE)*10^(-6)","v":{"$error":"#N/A"}},{"v":0,"d":"0%"}]
[5754,"IADB",null,"IDB-GEF Climate-Smart Agriculture Fund for the Americas ","Latin America","CCM LD","Debt",{"$f":"VLOOKUP($A10, Reflow_FY22[], 10, FALSE)*10^(-6)","v":{"$error":"#N/A"}},{"$f":"VLOOKUP($A10, Reflow_FY22[], 11, FALSE)*10^(-6)","v":{"$error":"#N/A"}},{"v":0.410144,"d":"0.4"},{"$f":"VLOOKUP($A10, Reflow_FY22[], 15, FALSE)*10^(-6)","v":{"$error":"#N/A"}},{"v":0,"d":"0.00"},{"$f":"VLOOKUP($A10, Reflow_FY22[], 16, FALSE)*10^(-6)","v":{"$error":"#N/A"}},{"v":6.71955962,"d":"6.7"},{"$f":"VLOOKUP($A10, Reflow_FY22[], 12, FALSE)*10^(-6)","v":{"$error":"#N/A"}},{"v":0,"d":"0%"},2019,2033,{"v":6.71955962,"d":"6.7"},{"$f":"VLOOKUP($A10, Reflow_FY22[], 13, FALSE)*10^(-6)","v":{"$error":"#N/A"}},{"v":0,"d":"0%"},{"v":3,"d":"3.0"},{"$f":"VLOOKUP($A10, Reflow_FY22[], 14, FALSE)*10^(-6)","v":{"$error":"#N/A"}},{"v":0,"d":"0%"}]
[5143,"EBRD",null,"Structured Financing for Energy Efficiency in Southern Mediterranean","EMEA","CCM","Debt",{"$f":"VLOOKUP($A11, Reflow_FY22[], 10, FALSE)*10^(-6)","v":{"$error":"#N/A"}},{"$f":"VLOOKUP($A11, Reflow_FY22[], 11, FALSE)*10^(-6)","v":{"$error":"#N/A"}},{"v":0.38103561999999996,"d":"0.4"},{"$f":"VLOOKUP($A11, Reflow_FY22[], 15, FALSE)*10^(-6)","v":{"$error":"#N/A"}},{"v":0,"d":"0.00"},{"$f":"O11-K11","v":{"$error":"#N/A"}},{"v":16.345907214990117,"d":"16.3"},{"$f":"VLOOKUP($A11, Reflow_FY22[], 12, FALSE)*10^(-6)","v":{"$error":"#N/A"}},{"v":0,"d":"0%"},2021,2042,{"v":0,"d":"0.0"},{"$f":"VLOOKUP($A11, Reflow_FY22[], 13, FALSE)*10^(-6)","v":{"$error":"#N/A"}},{"v":0,"d":"0%"},{"v":0,"d":"0.0"},{"$f":"VLOOKUP($A11, Reflow_FY22[], 14, FALSE)*10^(-6)","v":{"$error":"#N/A"}},{"v":0,"d":"0%"}]
[4929,"AfDB",null,"AfDB PPP Program","Africa","CCM"," Equity, Debt",{"$f":"VLOOKUP($A12, Reflow_FY22[], 10, FALSE)*10^(-6)","v":{"$error":"#N/A"}},{"$f":"VLOOKUP($A12, Reflow_FY22[], 11, FALSE)*10^(-6)","v":{"$error":"#N/A"}},{"v":0.989841,"d":"1.0"},{"$f":"VLOOKUP($A12, Reflow_FY22[], 15, FALSE)*10^(-6)","v":{"$error":"#N/A"}},{"v":0,"d":"0.00"},{"$f":"VLOOKUP($A12, Reflow_FY22[], 16, FALSE)*10^(-6)","v":{"$error":"#N/A"}},{"v":19.56657923,"d":"19.6"},{"$f":"VLOOKUP($A12, Reflow_FY22[], 12, FALSE)*10^(-6)","v":{"$error":"#N/A"}},{"v":0,"d":"0%"},2019,2035,{"v":19.56657923,"d":"19.6"},{"$f":"VLOOKUP($A12, Reflow_FY22[], 13, FALSE)*10^(-6)","v":{"$error":"#N/A"}},{"v":0,"d":"0%"},{"v":0,"d":"0.0"},{"$f":"VLOOKUP($A12, Reflow_FY22[], 14, FALSE)*10^(-6)","v":{"$error":"#N/A"}},{"v":0,"d":"0%"}]
[9058,"IADB","GEF - 6","Impact Investment in Support of the Implementation of the Nagoya Protocol on Access and Benefit Sharing","Latin America","BD","Equity",{"$f":"VLOOKUP($A13, Reflow_FY22[], 10, FALSE)*10^(-6)","v":{"$error":"#N/A"}},{"$f":"VLOOKUP($A13, Reflow_FY22[], 11, FALSE)*10^(-6)","v":{"$error":"#N/A"}},{"v":0,"d":"0.0"},{"$f":"VLOOKUP($A13, Reflow_FY22[], 15, FALSE)*10^(-6)","v":{"$error":"#N/A"}},{"v":0,"d":"0.00"},{"$f":"VLOOKUP($A13, Reflow_FY22[], 16, FALSE)*10^(-6)","v":{"$error":"#N/A"}},11.2,{"$f":"VLOOKUP($A13, Reflow_FY22[], 12, FALSE)*10^(-6)","v":{"$error":"#N/A"}},{"v":0,"d":"0%"},2028,2028,11.2,{"$f":"VLOOKUP($A13, Reflow_FY22[], 13, FALSE)*10^(-6)","v":{"$error":"#N/A"}},{"v":0,"d":"0%"},{"v":0,"d":"0.0"},{"$f":"VLOOKUP($A13, Reflow_FY22[], 14, FALSE)*10^(-6)","v":{"$error":"#N/A"}},{"v":0,"d":"0%"}]
[9277,"IADB",null,"Risk Mitigation Instrument for Land Restoration","Latin America","LD ","Guarantee",{"$f":"VLOOKUP($A14, Reflow_FY22[], 10, FALSE)*10^(-6)","v":{"$error":"#N/A"}},{"$f":"VLOOKUP($A14, Reflow_FY22[], 11, FALSE)*10^(-6)","v":{"$error":"#N/A"}},{"v":0,"d":"0.0"},{"$f":"VLOOKUP($A14, Reflow_FY22[], 15, FALSE)*10^(-6)","v":{"$error":"#N/A"}},{"v":0,"d":"0.00"},{"$f":"VLOOKUP($A14, Reflow_FY22[], 16, FALSE)*10^(-6)","v":{"$error":"#N/A"}},{"v":15,"d":"15.0"},{"$f":"VLOOKUP($A14, Reflow_FY22[], 12, FALSE)*10^(-6)","v":{"$error":"#N/A"}},{"v":0,"d":"0%"},2030,2030,{"v":26.375999999999998,"d":"26.4"},{"$f":"VLOOKUP($A14, Reflow_FY22[], 13, FALSE)*10^(-6)","v":{"$error":"#N/A"}},{"v":0,"d":"0%"},{"v":0,"d":"0.0"},{"$f":"VLOOKUP($A14, Reflow_FY22[], 14, FALSE)*10^(-6)","v":{"$error":"#N/A"}},{"v":0,"d":"0%"}]
[9047,"EBRD",null,"Green Logistics Program ","EMEA","CCM","Debt",{"$f":"VLOOKUP($A15, Reflow_FY22[], 10, FALSE)*10^(-6)","v":{"$error":"#N/A"}},{"$f":"VLOOKUP($A15, Reflow_FY22[], 11, FALSE)*10^(-6)","v":{"$error":"#N/A"}},{"v":6.91857504,"d":"6.9"},{"$f":"VLOOKUP($A15, Reflow_FY22[], 15, FALSE)*10^(-6)","v":{"$error":"#N/A"}},{"v":0,"d":"0.00"},{"$f":"O15-K15","v":{"$error":"#N/A"}},{"v":18.636195999999998,"d":"18.6"},{"$f":"VLOOKUP($A15, Reflow_FY22[], 12, FALSE)*10^(-6)","v":{"$error":"#N/A"}},{"v":0,"d":"0%"},2017,2037,{"v":15.665375039999999,"d":"15.7"},{"$f":"VLOOKUP($A15, Reflow_FY22[], 13, FALSE)*10^(-6)","v":{"$error":"#N/A"}},{"v":0,"d":"0%"},{"v":9,"d":"9.0"},{"$f":"VLOOKUP($A15, Reflow_FY22[], 14, FALSE)*10^(-6)","v":{"$error":"#N/A"}},{"v":0,"d":"0%"}]
[9043,"AfDB",null,"Investing in Renewable Energy Project Preparation","Africa","CCM","Reimbursable Grant",{"$f":"VLOOKUP($A16, Reflow_FY22[], 10, FALSE)*10^(-6)","v":{"$error":"#N/A"}},{"$f":"VLOOKUP($A16, Reflow_FY22[], 11, FALSE)*10^(-6)","v":{"$error":"#N/A"}},{"v":0,"d":"0.0"},{"$f":"VLOOKUP($A16, Reflow_FY22[], 15, FALSE)*10^(-6)","v":{"$error":"#N/A"}},{"v":0,"d":"0.00"},{"$f":"VLOOKUP($A16, Reflow_FY22[], 16, FALSE)*10^(-6)","v":{"$error":"#N/A"}},8.4,{"$f":"VLOOKUP($A16, Reflow_FY22[], 12, FALSE)*10^(-6)","v":{"$error":"#N/A"}},{"v":0,"d":"0%"},2027,2027,{"v":10,"d":"10.0"},{"$f":"VLOOKUP($A16, Reflow_FY22[], 13, FALSE)*10^(-6)","v":{"$error":"#N/A"}},{"v":0,"d":"0%"},{"v":4.88,"d":"4.9"},{"$f":"VLOOKUP($A16, Reflow_FY22[], 14, FALSE)*10^(-6)","v":{"$error":"#N/A"}},{"v":0,"d":"0%"}]
[9051,"AfDB",null,"Moringa Agro-forestry Fund for Africa ","Africa","LD ","Equity",{"$f":"VLOOKUP($A17, Reflow_FY22[], 10, FALSE)*10^(-6)","v":{"$error":"#N/A"}},{"$f":"VLOOKUP($A17, Reflow_FY22[], 11, FALSE)*10^(-6)","v":{"$error":"#N/A"}},{"v":0,"d":"0.0"},{"$f":"VLOOKUP($A17, Reflow_FY22[], 15, FALSE)*10^(-6)","v":{"$error":"#N/A"}},{"v":0,"d":"0.00"},{"$f":"VLOOKUP($A17, Reflow_FY22[], 16, FALSE)*10^(-6)","v":{"$error":"#N/A"}},{"v":4.360127599999999,"d":"4.4"},{"$f":"VLOOKUP($A17, Reflow_FY22[], 12, FALSE)*10^(-6)","v":{"$error":"#N/A"}},{"v":0,"d":"0%"},2024,2028,{"v":4.360127599999999,"d":"4.4"},{"$f":"VLOOKUP($A17, Reflow_FY22[], 13, FALSE)*10^(-6)","v":{"$error":"#N/A"}},{"v":0,"d":"0%"},{"v":0,"d":"0.0"},{"$f":"VLOOKUP($A17, Reflow_FY22[], 14, FALSE)*10^(-6)","v":{"$error":"#N/A"}},{"v":0,"d":"0%"},"AfDB justification for low reflow: The investment instrument in Moringa is \"equity\" as such, it can not be considered as a loan with expectation of principal repayment. The value of the investments could fluctuate throughout the investment life until they are exited and proceeds of the sale will be returned back to the investors including GEF."]
[9563,"WB",null,"Third South West Indian Ocean Fisheries Governance and Shared Growth Project (SWIOFish3)","Asia","BD IW ","Debt",{"$f":"VLOOKUP($A18, Reflow_FY22[], 10, FALSE)*10^(-6)","v":{"$error":"#N/A"}},{"$f":"VLOOKUP($A18, Reflow_FY22[], 11, FALSE)*10^(-6)","v":{"$error":"#N/A"}},{"v":0,"d":"0.0"},{"$f":"VLOOKUP($A18, Reflow_FY22[], 15, FALSE)*10^(-6)","v":{"$error":"#N/A"}},{"v":0,"d":"0.00"},{"$f":"VLOOKUP($A18, Reflow_FY22[], 16, FALSE)*10^(-6)","v":{"$error":"#N/A"}},{"v":5.2947482,"d":"5.3"},{"$f":"VLOOKUP($A18, Reflow_FY22[], 12, FALSE)*10^(-6)","v":{"$error":"#N/A"}},{"v":0,"d":"0%"},2024,2057,{"v":5.2947482,"d":"5.3"},{"$f":"VLOOKUP($A18, Reflow_FY22[], 13, FALSE)*10^(-6)","v":{"$error":"#N/A"}},{"v":0,"d":"0%"},{"v":3,"d":"3.0"},{"$f":"VLOOKUP($A18, Reflow_FY22[], 14, FALSE)*10^(-6)","v":{"$error":"#N/A"}},{"v":0,"d":"0%"},"$47,812.65 is repaid but will be recorded for FY24"]
[9370,"CI",null,"Meloy Fund for Sustainable Small-Scale Fisheries","Philippines, Indonesia","BD","Equity",{"$f":"VLOOKUP($A19, Reflow_FY22[], 10, FALSE)*10^(-6)","v":{"$error":"#N/A"}},{"$f":"VLOOKUP($A19, Reflow_FY22[], 11, FALSE)*10^(-6)","v":{"$error":"#N/A"}},{"v":0,"d":"0.0"},{"$f":"VLOOKUP($A19, Reflow_FY22[], 15, FALSE)*10^(-6)","v":{"$error":"#N/A"}},{"v":0,"d":"0.00"},{"$f":"VLOOKUP($A19, Reflow_FY22[], 16, FALSE)*10^(-6)","v":{"$error":"#N/A"}},{"v":8.299999999999999,"d":"8.3"},{"$f":"VLOOKUP($A19, Reflow_FY22[], 12, FALSE)*10^(-6)","v":{"$error":"#N/A"}},{"v":0,"d":"0%"},2028,2031,9.4,{"$f":"VLOOKUP($A19, Reflow_FY22[], 13, FALSE)*10^(-6)","v":{"$error":"#N/A"}},{"v":0,"d":"0%"},7.1,{"$f":"VLOOKUP($A19, Reflow_FY22[], 14, FALSE)*10^(-6)","v":{"$error":"#N/A"}},{"v":0,"d":"0%"}]
[9719,"UNEP",null,"Piloting Innovative Investments for Sustainable Landscapes","Brazil, Indonesia, Liberia","LD ","Debt",{"$f":"VLOOKUP($A20, Reflow_FY22[], 10, FALSE)*10^(-6)","v":{"$error":"#N/A"}},{"$f":"VLOOKUP($A20, Reflow_FY22[], 11, FALSE)*10^(-6)","v":{"$error":"#N/A"}},{"v":0,"d":"0.0"},{"$f":"VLOOKUP($A20, Reflow_FY22[], 15, FALSE)*10^(-6)","v":{"$error":"#N/A"}},{"v":0,"d":"0.00"},{"$f":"VLOOKUP($A20, Reflow_FY22[], 16, FALSE)*10^(-6)","v":{"$error":"#N/A"}},{"v":2.4162179999999998,"d":"2.4"},{"$f":"VLOOKUP($A20, Reflow_FY22[], 12, FALSE)*10^(-6)","v":{"$error":"#N/A"}},{"v":0,"d":"0%"},2038,2038,{"v":2.1745962,"d":"2.2"},{"$f":"VLOOKUP($A20, Reflow_FY22[], 13, FALSE)*10^(-6)","v":{"$error":"#N/A"}},{"v":0,"d":"0%"},{"v":2.5370288999999997,"d":"2.5"},{"$f":"VLOOKUP($A20, Reflow_FY22[], 14, FALSE)*10^(-6)","v":{"$error":"#N/A"}},{"v":0,"d":"0%"}]
[9914,"IUCN",null,"CPIC Conservation Finance Initiative - Scaling up and Demonstrating the Value of Blended Finance in Conservation","Global","BD LD","Equity",{"$f":"VLOOKUP($A21, Reflow_FY22[], 10, FALSE)*10^(-6)","v":{"v":7.949999999999999,"d":"8.0"}},{"$f":"VLOOKUP($A21, Reflow_FY22[], 11, FALSE)*10^(-6)","v":{"v":52.838,"d":"52.8"}},{"v":0,"d":"0.0"},{"$f":"VLOOKUP($A21, Reflow_FY22[], 15, FALSE)*10^(-6)","v":{"v":0,"d":"0.0"}},{"v":0,"d":"0.00"},{"$f":"VLOOKUP($A21, Reflow_FY22[], 16, FALSE)*10^(-6)","v":{"v":6.206429269999999,"d":"6.2"}},{"v":5.178999999999999,"d":"5.2"},{"$f":"VLOOKUP($A21, Reflow_FY22[], 12, FALSE)*10^(-6)","v":{"v":6.206429269999999,"d":"6.2"}},{"v":0.198383716933771,"d":"20%"},2032,2032,{"v":8.668,"d":"8.7"},{"$f":"VLOOKUP($A21, Reflow_FY22[], 13, FALSE)*10^(-6)","v":{"v":0,"d":"0.0"}},{"v":-1,"d":"-100%"},{"v":3.3939999999999997,"d":"3.4"},{"$f":"VLOOKUP($A21, Reflow_FY22[], 14, FALSE)*10^(-6)","v":{"v":0,"d":"0.0"}},{"v":-1,"d":"-100%"}]
[9085,"DBSA",null,"Equity Fund for the Small Projects Independent Power Producer Procurement Programme (non-grant)","South Africa","CCM","Equity",{"$f":"VLOOKUP($A22, Reflow_FY22[], 10, FALSE)*10^(-6)","v":{"$error":"#N/A"}},{"$f":"VLOOKUP($A22, Reflow_FY22[], 11, FALSE)*10^(-6)","v":{"$error":"#N/A"}},{"v":0,"d":"0.0"},{"$f":"VLOOKUP($A22, Reflow_FY22[], 15, FALSE)*10^(-6)","v":{"$error":"#N/A"}},{"v":0,"d":"0.00"},{"$f":"VLOOKUP($A22, Reflow_FY22[], 16, FALSE)*10^(-6)","v":{"$error":"#N/A"}},{"v":23.432386491338544,"d":"23.4"},{"$f":"VLOOKUP($A22, Reflow_FY22[], 12, FALSE)*10^(-6)","v":{"$error":"#N/A"}},{"v":0,"d":"0%"},2037,2037,{"v":27.03736902846755,"d":"27.0"},{"$f":"VLOOKUP($A22, Reflow_FY22[], 13, FALSE)*10^(-6)","v":{"$error":"#N/A"}},{"v":0,"d":"0%"},{"v":0,"d":"0.0"},{"$f":"VLOOKUP($A22, Reflow_FY22[], 14, FALSE)*10^(-6)","v":{"$error":"#N/A"}},{"v":0,"d":"0%"},"Maintain last year's reporting, awaiting for major amendment"]
[10330,"WB","GEF - 7","Wildlife Conservation Bond","South Africa","BD","Reimbursable Grant",{"$f":"VLOOKUP($A23, Reflow_FY22[], 10, FALSE)*10^(-6)","v":{"$error":"#N/A"}},{"$f":"VLOOKUP($A23, Reflow_FY22[], 11, FALSE)*10^(-6)","v":{"$error":"#N/A"}},{"v":0,"d":"0.0"},{"$f":"VLOOKUP($A23, Reflow_FY22[], 15, FALSE)*10^(-6)","v":{"$error":"#N/A"}},{"v":0,"d":"0.00"},{"$f":"VLOOKUP($A23, Reflow_FY22[], 16, FALSE)*10^(-6)","v":{"$error":"#N/A"}},{"v":0,"d":"0.0"},{"$f":"VLOOKUP($A23, Reflow_FY22[], 12, FALSE)*10^(-6)","v":{"$error":"#N/A"}},{"v":0,"d":"0%"},2026,2026,{"v":13.761467999999999,"d":"13.8"},{"$f":"VLOOKUP($A23, Reflow_FY22[], 13, FALSE)*10^(-6)","v":{"$error":"#N/A"}},{"v":0,"d":"0%"},{"v":0,"d":"0.0"},{"$f":"VLOOKUP($A23, Reflow_FY22[], 14, FALSE)*10^(-6)","v":{"$error":"#N/A"}},{"v":0,"d":"0%"},"Flipped best vs worst, just for financial perspective"]
[10322,"CI",null,"The Food Securities Fund: A fund to finance sustainable supply chains  at scale in Emerging Markets","Global","BD LD CCM","Equity",{"$f":"VLOOKUP($A24, Reflow_FY22[], 10, FALSE)*10^(-6)","v":{"$error":"#N/A"}},{"$f":"VLOOKUP($A24, Reflow_FY22[], 11, FALSE)*10^(-6)","v":{"$error":"#N/A"}},{"v":0,"d":"0.0"},{"$f":"VLOOKUP($A24, Reflow_FY22[], 15, FALSE)*10^(-6)","v":{"$error":"#N/A"}},{"v":0,"d":"0.00"},{"$f":"VLOOKUP($A24, Reflow_FY22[], 16, FALSE)*10^(-6)","v":{"$error":"#N/A"}},{"v":17.647583,"d":"17.6"},{"$f":"VLOOKUP($A24, Reflow_FY22[], 12, FALSE)*10^(-6)","v":{"$error":"#N/A"}},{"v":0,"d":"0%"},2029,2029,{"v":19.998523,"d":"20.0"},{"$f":"VLOOKUP($A24, Reflow_FY22[], 13, FALSE)*10^(-6)","v":{"$error":"#N/A"}},{"v":0,"d":"0%"},{"v":14.586165999999999,"d":"14.6"},{"$f":"VLOOKUP($A24, Reflow_FY22[], 14, FALSE)*10^(-6)","v":{"$error":"#N/A"}},{"v":0,"d":"0%"}]
[10328,"EBRD",null,"Circular Economy Regional Programme Initiative (Near Zero Waste)","ECA","CCM CW","Debt",{"$f":"VLOOKUP($A25, Reflow_FY22[], 10, FALSE)*10^(-6)","v":{"$error":"#N/A"}},{"$f":"VLOOKUP($A25, Reflow_FY22[], 11, FALSE)*10^(-6)","v":{"$error":"#N/A"}},{"v":0,"d":"0.0"},{"$f":"VLOOKUP($A25, Reflow_FY22[], 15, FALSE)*10^(-6)","v":{"$error":"#N/A"}},{"v":0,"d":"0.00"},{"$f":"VLOOKUP($A25, Reflow_FY22[], 16, FALSE)*10^(-6)","v":{"$error":"#N/A"}},{"v":14.136467999999999,"d":"14.1"},{"$f":"VLOOKUP($A25, Reflow_FY22[], 12, FALSE)*10^(-6)","v":{"$error":"#N/A"}},{"v":0,"d":"0%"},2035,2035,{"v":14.136467999999999,"d":"14.1"},{"$f":"VLOOKUP($A25, Reflow_FY22[], 13, FALSE)*10^(-6)","v":{"$error":"#N/A"}},{"v":0,"d":"0%"},{"v":8.2568808,"d":"8.3"},{"$f":"VLOOKUP($A25, Reflow_FY22[], 14, FALSE)*10^(-6)","v":{"$error":"#N/A"}},{"v":0,"d":"0%"}]
[10336,"IADB",null,"Agtech for inclusion and sustainability: SP Ventures'Regional Fund (Agventures II)     ","LAC","CCM LD CW","Equity",{"$f":"VLOOKUP($A26, Reflow_FY22[], 10, FALSE)*10^(-6)","v":{"$error":"#N/A"}},{"$f":"VLOOKUP($A26, Reflow_FY22[], 11, FALSE)*10^(-6)","v":{"$error":"#N/A"}},{"v":0,"d":"0.0"},{"$f":"VLOOKUP($A26, Reflow_FY22[], 15, FALSE)*10^(-6)","v":{"$error":"#N/A"}},{"v":0,"d":"0.00"},{"$f":"VLOOKUP($A26, Reflow_FY22[], 16, FALSE)*10^(-6)","v":{"$error":"#N/A"}},20.7,{"$f":"VLOOKUP($A26, Reflow_FY22[], 12, FALSE)*10^(-6)","v":{"$error":"#N/A"}},{"v":0,"d":"0%"},2026,2030,33.8,{"$f":"VLOOKUP($A26, Reflow_FY22[], 13, FALSE)*10^(-6)","v":{"$error":"#N/A"}},{"$f":"IFERROR((T26-S26)/S26, 0)","v":{"v":0,"d":"0%"}},6.6,{"$f":"VLOOKUP($A26, Reflow_FY22[], 14, FALSE)*10^(-6)","v":{"$error":"#N/A"}},{"v":0,"d":"0%"}]
[10497,"CI",null,"AGRI3 A Forest Conservation and Sustainable Agriculture Fund for Developing Countries","Global","BD LD","Equity",13.5,{"$f":"VLOOKUP($A27, Reflow_FY22[], 11, FALSE)*10^(-6)","v":{"$error":"#N/A"}},null,{"$f":"VLOOKUP($A27, Reflow_FY22[], 15, FALSE)*10^(-6)","v":{"$error":"#N/A"}},null,{"$f":"VLOOKUP($A27, Reflow_FY22[], 16, FALSE)*10^(-6)","v":{"$error":"#N/A"}},17.5,{"$f":"VLOOKUP($A27, Reflow_FY22[], 12, FALSE)*10^(-6)","v":{"$error":"#N/A"}},{"$f":"IFERROR((O27-N27)/N27, 0)","v":{"v":0,"d":"0%"}},2035,2035,18.5,{"$f":"VLOOKUP($A27, Reflow_FY22[], 13, FALSE)*10^(-6)","v":{"$error":"#N/A"}},{"$f":"IFERROR((T27-S27)/S27, 0)","v":{"v":0,"d":"0%"}},13.5,{"$f":"VLOOKUP($A27, Reflow_FY22[], 14, FALSE)*10^(-6)","v":{"$error":"#N/A"}},{"$f":"IFERROR((W27-V27)/V27, 0)","v":{"v":0,"d":"0%"}}]
[10500,"CI",null,"Livelihoods Carbon Fund 3 (LCF3)","Global","BD LD","Equity",13.5,{"$f":"VLOOKUP($A28, Reflow_FY22[], 11, FALSE)*10^(-6)","v":{"$error":"#N/A"}},null,{"$f":"VLOOKUP($A28, Reflow_FY22[], 15, FALSE)*10^(-6)","v":{"$error":"#N/A"}},null,{"$f":"VLOOKUP($A28, Reflow_FY22[], 16, FALSE)*10^(-6)","v":{"$error":"#N/A"}},{"v":17.776366,"d":"17.8"},{"$f":"VLOOKUP($A28, Reflow_FY22[], 12, FALSE)*10^(-6)","v":{"$error":"#N/A"}},{"$f":"IFERROR((O28-N28)/N28, 0)","v":{"v":0,"d":"0%"}},2041,2041,{"v":18.611129,"d":"18.6"},{"$f":"VLOOKUP($A28, Reflow_FY22[], 13, FALSE)*10^(-6)","v":{"$error":"#N/A"}},{"$f":"IFERROR((T28-S28)/S28, 0)","v":{"v":0,"d":"0%"}},{"v":13.803287,"d":"13.8"},{"$f":"VLOOKUP($A28, Reflow_FY22[], 14, FALSE)*10^(-6)","v":{"$error":"#N/A"}},{"$f":"IFERROR((W28-V28)/V28, 0)","v":{"v":0,"d":"0%"}}]
[10667,"AfDB",null,"COVID-19 Off-Grid Recovery Platform","Africa","CCM","Debt",{"$f":"VLOOKUP($A29, Reflow_FY22[], 10, FALSE)*10^(-6)","v":{"$error":"#N/A"}},{"$f":"VLOOKUP($A29, Reflow_FY22[], 11, FALSE)*10^(-6)","v":{"$error":"#N/A"}},{"v":0,"d":"0.0"},{"$f":"VLOOKUP($A29, Reflow_FY22[], 15, FALSE)*10^(-6)","v":{"$error":"#N/A"}},{"$f":"IFERROR((K29-#REF!), 0)","v":{"v":0,"d":"0.00"}},{"$f":"VLOOKUP($A29, Reflow_FY22[], 16, FALSE)*10^(-6)","v":{"$error":"#N/A"}},{"v":13,"d":"13.0"},{"$f":"VLOOKUP($A29, Reflow_FY22[], 12, FALSE)*10^(-6)","v":{"$error":"#N/A"}},{"$f":"IFERROR((O29-N29)/N29, 0)","v":{"v":0,"d":"0%"}},2026,2028,{"v":13,"d":"13.0"},{"$f":"VLOOKUP($A29, Reflow_FY22[], 13, FALSE)*10^(-6)","v":{"$error":"#N/A"}},{"$f":"IFERROR((T29-S29)/S29, 0)","v":{"v":0,"d":"0%"}},7.8,{"$f":"VLOOKUP($A29, Reflow_FY22[], 14, FALSE)*10^(-6)","v":{"$error":"#N/A"}},{"$f":"IFERROR((W31-#REF!)/#REF!, 0)","v":{"v":0,"d":"0%"}}]
[11066,"IADB","GEF-8","Yield Lab Opportunity Fund I: Accelerating technology and local innovation for sustainable and decarbonized food systems in Latin America and the Caribbean.","LAC","CCM LD CW","Equity",{"v":6,"d":"6.0"},{"v":44,"d":"44.0"},null,{"$f":"VLOOKUP($A30, Reflow_FY22[], 15, FALSE)*10^(-6)","v":{"$error":"#N/A"}},null,{"$f":"VLOOKUP($A30, Reflow_FY22[], 16, FALSE)*10^(-6)","v":{"$error":"#N/A"}},null,{"$f":"VLOOKUP($A30, Reflow_FY22[], 12, FALSE)*10^(-6)","v":{"$error":"#N/A"}},null,2034,2034,null,{"$f":"VLOOKUP($A30, Reflow_FY22[], 13, FALSE)*10^(-6)","v":{"$error":"#N/A"}},null,null,{"$f":"VLOOKUP($A30, Reflow_FY22[], 14, FALSE)*10^(-6)","v":{"$error":"#N/A"}}]
["Total",{"$nulls":6},{"$f":"SUM(H2:H30)","v":{"$error":"#N/A"}},{"$f":"SUM(I2:I30)","v":{"$error":"#N/A"}},{"$f":"SUM(J2:J29)","v":{"v":49.4327075,"d":"49.4"}},{"$f":"SUM(K2:K30)","v":{"$error":"#N/A"}},{"$f":"SUM(L2:L29)","v":{"v":0,"d":"0.0"}},{"$f":"SUM(M2:M30)","v":{"$error":"#N/A"}},{"$f":"SUM(N2:N30)","v":{"v":327.14866992632864,"d":"327.1"}},{"$f":"SUM(O2:O30)","v":{"$error":"#N/A"}},{"$f":"IFERROR((O31-N31)/N31, 0)","v":{"v":0,"d":"0.0%"}},null,null,{"$f":"SUM(S2:S30)","v":{"v":358.1292929184675,"d":"358.13"}},{"$f":"SUM(T2:T30)","v":{"$error":"#N/A"}},{"$f":"IFERROR((T31-S31)/S31, 0)","v":{"v":0,"d":"0%"}},{"$f":"SUM(V2:V30)","v":{"v":149.88830296,"d":"149.9"}},{"$f":"SUM(W2:W30)","v":{"$error":"#N/A"}},{"$f":"IFERROR((W31-V31)/V31, 0)","v":{"v":0,"d":"0%"}}]
[null,"*Estimated investment reflows are based on original project documents and additional investment information from Agencies.",{"$nulls":12},{"$f":"O31-N31","v":{"$error":"#N/A"}}]
[{"$nulls":7},{"$f":"+H31+SUM(H38:H44)","v":{"$error":"#N/A"}},{"$f":"+I31+SUM(I38:I40)","v":{"$error":"#N/A"}},{"$f":"+J31+SUM(J38:J40)","v":{"v":49.4327075,"d":"49.4"}},{"$nulls":4},{"$f":"O31+ SUM(O38:O44)","v":{"$error":"#N/A"}}]
[]
[{"$nulls":7},{"$f":"SUM(H13:H30)","v":{"$error":"#N/A"}},{"$f":"SUM(I13:I30)","v":{"$error":"#N/A"}},{"$nulls":13},{"$f":"376.7+128","v":504.7}]
[{"$nulls":7},{"$f":"H35-H13-H22+H38","v":{"$error":"#N/A"}},{"$f":"I35-I13-I22+I38","v":{"$error":"#N/A"}},{"$f":"I36/H36","v":{"$error":"#N/A"}}]
[]
[11062,"ADB","GEF-8","Natural Capital Fund (NCF): Investing in Nature-Positive Agri-Food Enterprises in Asia and the Pacific","Asia","LD CW","Equity",{"v":13.76,"d":"13.8"},646.4,{"$nulls":5},{"v":20,"d":"20.00"}]
[11064,"DBSA",null,"Private Sector Energy Efficiency Programme Phase 2 (PSEEP2)","AFR","CCM","Risk Mitigation",{"v":12.76,"d":"12.8"},{"v":509,"d":"509.0"},{"$nulls":5},{"v":12,"d":"12.00"}]
[11068,"WB",null,"Guarantee Mechanism for Renewable Biogas in India","India","CCM","Risk Mitigation",{"v":13.76,"d":"13.8"},{"v":705,"d":"705.0"},{"$nulls":5},{"v":2.3,"d":"2.30"}]
[11323,"WB",null,"Indonesia Coral Bond","Indonesia","BD","Reimbursable Grant",{"v":13.76,"d":"13.8"},156.1,{"$nulls":5},0]
[11324,"IADB",null,"Innovative use of financial instruments for Biodiversity Conservation and Restoration in Latin America and the Caribbean","LAC","BD","Risk Mitigation",{"v":39,"d":"39.0"},{"v":641,"d":"641.0"},{"$nulls":5},{"v":16.7,"d":"16.70"}]
[11326,"WB",null,"IFC/GEF Green Global Supply Chain Decarbonization Platform","Global","CCM","Debt",{"v":13.76,"d":"13.8"},{"v":150,"d":"150.0"},{"$nulls":5},{"v":13.7,"d":"13.70"}]
[11327,"FUNBIO",null,"Living Amazon Mechanism","Brazil","BD","Reimbursable Grant",{"v":6,"d":"6.0"},46.6,{"$nulls":5},{"v":6,"d":"6.00"}]

{"sheet":"Table 2","index":2,"n_rows":12,"n_cols":9,"rows_kept":12,"merged":[[2,2,8,2],[9,0,9,6]]}
[]
["GEF ID","Agency","GEF Phase","Program Title","Country/ Countries","Focal Area(s)","Type of Non-Grant Instrument ","GEF Non-Grant Investment Amount\n(million USD)","Investment Co-financing\n(million USD)"]
[11062,"ADB","GEF-8","Natural Capital Fund (NCF): Investing in Nature-Positive Agri-Food Enterprises in Asia and the Pacific","Asia","LD CW","Equity",{"v":15,"d":"15.0"},646.4]
[11064,"DBSA",null,"Private Sector Energy Efficiency Programme Phase 2 (PSEEP2)","AFR","CCM","Risk Mitigation",16.3,{"v":509,"d":"509.0"}]
[11068,"WB",null,"Guarantee Mechanism for Renewable Biogas in India","India","CCM","Guarantee",{"v":15,"d":"15.0"},{"v":705,"d":"705.0"}]
[11323,"WB",null,"Indonesia Coral Bond","Indonesia","BD","Reimbursable Grant",{"v":15,"d":"15.0"},156.1]
[11324,"IADB",null,"Innovative use of financial instruments for Biodiversity Conservation and Restoration in Latin America and the Caribbean","LAC","BD","Risk Mitigation",43.8,{"v":641,"d":"641.0"}]
[11326,"WB",null,"IFC/GEF Green Global Supply Chain Decarbonization Platform","Global","CCM","Debt",{"v":16,"d":"16.0"},{"v":150,"d":"150.0"}]
[11327,"FUNBIO",null,"Living Amazon Mechanism","Brazil","BD","Reimbursable Grant",6.9,46.6]
["Total",{"$nulls":6},{"$f":"SUM(H3:H9)","v":{"v":128,"d":"128.0"}},{"$f":"SUM(I3:I9)","v":{"v":2854.1,"d":"2,854.1"}}]
[]
[{"$nulls":7},{"v":6.6,"d":"7"}]

{"sheet":"Graph","index":3,"n_rows":38,"n_cols":7,"rows_kept":38}
[null,"Number of Projects w. reflow","Number of Projects w/o reflow","Actual Reflow","Estimated Reflow","Estimated Reflow","Amount invested w/o reflow"]
[]
["GEF-1",1,6,{"v":1000000,"d":"1,000,000"},{"v":1000000,"d":"1,000,000"},{"$f":"E3-D3","v":0},{"v":68444319,"d":"68,444,319"}]
["GEF-2",1,20,{"v":10300000,"d":"10,300,000"},{"v":10300000,"d":"10,300,000"},{"$f":"E4-D4","v":0},{"v":114237200,"d":"114,237,200"}]
["GEF-3",3,24,{"v":25700000,"d":"25,700,000"},{"v":25700000,"d":"25,700,000"},0,{"v":148004000,"d":"148,004,000"}]
["GEF-4",1,5,{"v":10600000,"d":"10,600,000"},{"v":10600000,"d":"10,600,000"},0,{"v":50988545,"d":"50,988,545"}]
["GEF-5",5,12,{"v":7800000,"d":"7,800,000"},{"v":74700000,"d":"74,700,000"},{"v":66900000,"d":"66,900,000"},{"v":73175466,"d":"73,175,466"}]
["GEF-6",10,1,{"v":7300000,"d":"7,300,000"},{"v":99300000,"d":"99,300,000"},{"v":92000000,"d":"92,000,000"},{"v":1200000,"d":"1,200,000"}]
["GEF-7",10,0,0,{"v":132620000,"d":"132,620,000"},{"v":132620000,"d":"132,620,000"},0]
["GEF-8",8,0,0,{"$f":"50000000+49600000","v":{"v":99600000,"d":"99,600,000"}},{"v":99600000,"d":"99,600,000"},{"v":2380000,"d":"2,380,000"}]
[]
[]
[]
[{"$nulls":3},"GEF - 1",68444319]
[{"$nulls":3},"GEF - 2",114237200]
[{"$nulls":3},"GEF - 3",148004000]
[{"$nulls":3},"GEF - 4",50988545]
[{"$nulls":3},"GEF - 5",73175466]
[{"$nulls":3},"GEF - 6",1200000]
[{"$nulls":3},"GEF - 7"]
[{"$nulls":3},"Pilot Phase",16000000]
[]
[]
[]
[{"$nulls":6},100.8]
[{"$nulls":6},27.5]
{"$rows_empty":11}
[{"$nulls":3},{"$f":"+D37:CD38","v":0}]

{"sheet":"Annex","index":4,"n_rows":108,"n_cols":18,"rows_kept":108,"merged":[[0,0,1,0],[0,1,1,1],[0,2,1,2],[0,3,1,3],[0,4,1,4],[0,5,1,5],[0,6,1,6],[0,8,1,8],[0,9,1,9],[0,10,1,10],[0,11,1,11],[0,12,1,12],[107,0,107,7]]}
["GEF ID","Agency","Region","Country","Project Status","Title","GEF Phase","CEO Approval","GEF Amount ($M)**","Co-Financing ($M)","Total Project Cost ($M)","Co-financing Ratio","Type of Non-Grant Instrument (summarized)"]
[{"$nulls":7},"/Endorsement date",{"$nulls":5},"Investment","Agency Fee","PPG","PPG Agency fee"]
[13,"UNDP","Asia","Thailand","Financially Closed","Removal of Barriers to Biomass Power Generation and Co-generation","GEF - 2","2001-01-22",7.2,66.4,73.6,9.2,"Risk Mitigation",{"v":6805000,"d":"6,805,000"},{"v":382000,"d":"382,000"},{"v":25000,"d":"25,000"},null,{"$f":"SUM(N3:Q3)-I3*10^6","v":{"v":12000,"d":"12,000"}}]
[91,"WB","CEX","Global","Project Implemented","Small and Medium Scale Enterprise Program (IFC)","GEF - 1","1994-07-01",4.3,15.2,19.5,3.5,"Mixed",{"v":4300000,"d":"4,300,000"},0,null,null,{"$f":"SUM(N4:Q4)-I4*10^6","v":0}]
[111,"WB","ECA","Hungary","Project Implemented","Energy Efficiency Co-Financing Program","GEF - 1","1997-05-10",5,20,25,4,"Risk Mitigation",{"v":5000000,"d":"5,000,000"},{"$nulls":3},0]
[112,"WB","CEX","India, Kenya, Morocco, Global","Project Implemented","Photovoltaic Market Transformation Initiative (IFC)","GEF - 1","1998-06-16",30.4,90,120.4,3,"Mixed",{"v":30000000,"d":"30,000,000"},null,{"v":375000,"d":"375,000"},null,{"v":-25000,"d":"(25,000)"}]
[135,"WB","CEX","Global","Financially Closed","Small and Medium Scale Enterprise Program (IFC, first replenishment)","GEF - 1","1997-02-09",16.5,36,52.5,2.2,"Mixed",{"v":16500000,"d":"16,500,000"},{"$nulls":3},0]
[267,"UNDP","CEX","Egypt, Palestinian Authority, Regional","Financially Closed","Energy Efficiency Improvements and Greenhouse Gas Reductions","GEF - 1","1998-06-15",6.4,1.8,8.1,0.3,"Risk Mitigation",{"v":6360000,"d":"6,360,000"},{"$nulls":3},{"v":-40000,"d":"(40,000)"}]
[314,"UNDP","LAC","Bolivia","Financially Closed","A Program for Rural Electrification with Renewable Energy Using the Popular Participation Law","GEF - 1","1999-05-27",4.2,4.1,8.3,1,"Debt",{"v":3983719,"d":"3,983,719"},null,{"v":237446,"d":"237,446"},null,{"v":21165,"d":"21,165"}]
[377,"UNDP","AFR","Sudan","Financially Closed","Community Based Rangeland Rehabilitation for Carbon Sequestration","Pilot Phase","1994-08-01",1.5,0.1,1.6,0.1,"Debt",{"v":1500000,"d":"1,500,000"},{"$nulls":3},0]
[386,"UNDP","Asia","India","Financially Closed","Optimizing Development of Small Hydel Resources in Hilly Areas","Pilot Phase","1991-12-01",7.5,7.1,14.6,1,"Debt",{"v":7500000,"d":"7,500,000"},{"$nulls":3},0]
[391,"UNDP","Asia","Pakistan","Financially Closed","Fuel Efficiency in the Road Transport Sector","Pilot Phase","1992-05-01",7,0,7,0,"Debt",{"v":7000000,"d":"7,000,000"},0,null,null,0]
[448,"UNDP","Asia","Malaysia","Financially Closed","Industrial Energy Efficiency Improvement Project","GEF - 1","1999-06-07",7.3,12.6,19.9,1.7,"Debt",{"v":7300600,"d":"7,300,600"},{"$nulls":3},600]
[540,"WB","Asia","Thailand","Financially Closed","Building Chiller Replacement Program","GEF - 2","2001-04-22",2.5,88,90.5,35.2,"Debt",{"v":2500000,"d":"2,500,000"},{"$nulls":3},0]
[622,"UNDP","Asia","China","Project Implemented","Energy Conservation and GHG Emission Reduction in Chinese Township and Village Enterprises (TVE), Phase II","GEF - 2","2000-10-10",8,10.6,18.5,1.3,"Debt",{"v":7992000,"d":"7,992,000"},{"$nulls":3},{"v":-8000,"d":"(8,000)"}]
[641,"UNDP","AFR","Malawi","Financially Closed","Barrier Removal to Renewable Energy Programme","GEF - 2","2000-10-14",3.4,7.3,10.7,2.1,"Risk Mitigation",{"v":3353000,"d":"3,353,000"},null,{"v":64800,"d":"64,800"},null,{"v":17800,"d":"17,800"}]
[646,"UNDP","AFR","Morocco","Financially Closed","Market Development for Solar Water Heaters","GEF - 2","2000-04-23",3,2.4,5.4,0.8,"Risk Mitigation",{"v":2965000,"d":"2,965,000"},{"$nulls":3},{"v":-35000,"d":"(35,000)"}]
[658,"UNDP","ECA","Slovenia","Financially Closed","Removing Barriers to the Increased Use of Biomass as an Energy Source","GEF - 2","2001-02-04",4.4,7.9,12.3,1.8,"Debt",{"v":4300000,"d":"4,300,000"},null,{"v":98000,"d":"98,000"},null,{"v":-2000,"d":"(2,000)"}]
[660,"UNDP","AFR","Sudan","Financially Closed","Barrier Removal to Secure PV Market Penetration in Semi-Urban Sudan","GEF - 2","1999-03-04",0.8,1,1.7,1.3,"Risk Mitigation",{"v":725000,"d":"725,000"},null,{"v":25000,"d":"25,000"},null,{"v":-50000,"d":"(50,000)"}]
[786,"WB","ECA","Poland","Financially Closed","Krakow Energy Efficiency Project","GEF - 2","2004-09-20",12.1,88,100.1,7.3,"Risk Mitigation",{"v":11000000,"d":"11,000,000"},{"v":867000,"d":"867,000"},{"v":184250,"d":"184,250"},null,{"v":-48750,"d":"(48,750)"}]
[843,"UNDP","LAC","Chile","Financially Closed","Removal of Barriers to Rural Electrification with Renewable Energy","GEF - 2","2001-06-27",6.4,26.3,32.8,4.1,"Risk Mitigation",{"v":5984900,"d":"5,984,900"},{"v":382000,"d":"382,000"},{"v":82400,"d":"82,400"},null,{"v":49300,"d":"49,300"}]
[882,"UNDP","ECA","Croatia","Financially Closed","Removing Barriers to Improving Energy Efficiency of the Residential and Service Sectors","GEF - 2","2004-08-08",5,8.7,13.6,1.7,"Risk Mitigation",{"v":4390000,"d":"4,390,000"},{"v":382000,"d":"382,000"},{"v":200800,"d":"200,800"},null,{"v":-27200,"d":"(27,200)"}]
[883,"WB","ECA","Romania","Financially Closed","Energy Efficiency Project","GEF - 2","2002-08-19",11.4,40,51.4,3.5,"Debt",{"v":10000000,"d":"10,000,000"},{"v":1039000,"d":"1,039,000"},{"v":350000,"d":"350,000"},null,{"v":-11000,"d":"(11,000)"}]
[935,"UNDP","AFR","Namibia","Financially Closed","Barrier Removal to Namibian Renewable Energy Programme, Phase I","GEF - 2","2003-01-12",2.9,4.7,7.7,1.6,"Risk Mitigation",{"v":2600000,"d":"2,600,000"},{"v":242000,"d":"242,000"},{"v":103000,"d":"103,000"},null,{"v":45000,"d":"45,000"}]
[944,"WB","ECA","Croatia","Financially Closed","Energy Efficiency Project","GEF - 2","2003-08-24",7.8,23.4,31.2,3,"Risk Mitigation",{"v":7000000,"d":"7,000,000"},{"v":701000,"d":"701,000"},{"v":84410,"d":"84,410"},null,{"v":-14590,"d":"(14,590)"}]
[1061,"WB","LAC","Peru","Financially Closed","Inka Terra: An Innovative Partnership for Self-Financing Biodiversity Conservation & Community Development","GEF - 3","2003-12-18",0.9,11.4,12.3,12.7,"Debt",{"v":725000,"d":"725,000"},{"v":146000,"d":"146,000"},{"v":25000,"d":"25,000"},null,{"v":-4000,"d":"(4,000)"}]
[1137,"UNDP","ECA","Georgia","Financially Closed","Promoting the Use of Renewable Energy Resources for Local Energy Supply","GEF - 3","2004-02-10",5.1,8.7,13.8,1.7,"Debt",{"v":4300000,"d":"4,300,000"},{"v":382000,"d":"382,000"},{"v":411500,"d":"411,500"},null,{"v":-6500,"d":"(6,500)"}]
[1198,"UNDP","ECA","Belarus","Financially Closed","Biomass Energy for Heating and Hot Water Supply","GEF - 3","2003-06-25",3.8,5.6,9.3,1.5,"Debt",{"v":3129000,"d":"3,129,000"},{"v":382000,"d":"382,000"},{"v":245000,"d":"245,000"},null,{"v":-44000,"d":"(44,000)"}]
[1199,"UNDP","Asia","India","Financially Closed","Removal of Barriers to Biomass Power Generation, Part I","GEF - 3","2005-01-12",6,33.5,39.5,5.6,"Risk Mitigation",{"v":5650000,"d":"5,650,000"},{"v":382000,"d":"382,000"},null,null,{"v":32000,"d":"32,000"}]
[1237,"WB","Asia","China","Financially Closed","Energy Conservation Project,  Phase II","GEF - 2","2002-09-29",29.1,255.2,284.3,8.8,"Risk Mitigation",{"v":26000000,"d":"26,000,000"},{"v":3100000,"d":"3,100,000"},null,null,0]
[1245,"UNDP","AFR","Lesotho","Financially Closed","Renewable Energy-based Rural Electrification","GEF - 3","2006-09-21",3.2,4.3,7.5,1.3,"Risk Mitigation",{"v":2500000,"d":"2,500,000"},{"v":382000,"d":"382,000"},{"v":320000,"d":"320,000"},null,{"v":2000,"d":"2,000"}]
[1264,"UNDP","Asia","Philippines","Financially Closed","Capacity Building to Remove Barriers to Renewable Energy Development","GEF - 2","2002-09-23",6.8,18.3,25.2,2.7,"Risk Mitigation",{"v":6143000,"d":"6,143,000"},{"v":382000,"d":"382,000"},{"v":305000,"d":"305,000"},null,{"v":30000,"d":"30,000"}]
[1265,"UNDP","ECA","Poland","Financially Closed","Polish Energy Efficiency Motors Programme","GEF - 2","2003-11-04",4.9,17.7,22.6,3.6,"Debt",{"v":4304300,"d":"4,304,300"},{"v":382000,"d":"382,000"},{"v":195700,"d":"195,700"},null,{"v":-18000,"d":"(18,000)"}]
[1291,"WB","ECA","Croatia","Financially Closed","Renewable Energy Resources Project","GEF - 2","2005-05-22",6.7,21.4,28.2,3.2,"Mixed",{"v":5500000,"d":"5,500,000"},{"v":890000,"d":"890,000"},{"v":350000,"d":"350,000"},null,{"v":40000,"d":"40,000"}]
[1316,"WB","ECA","Hungary","Financially Closed","Energy Efficiency Co-Financing Program 2 (HEECP2)","GEF - 2","2001-10-02",0.9,93.2,94.1,99.1,"Risk Mitigation",{"v":700000,"d":"700,000"},{"v":240000,"d":"240,000"},null,null,{"v":40000,"d":"40,000"}]
[1335,"UNDP","AFR","Egypt","Project Implemented","Bioenergy for Sustainable Rural Development","GEF - 3","2008-07-13",3.6,13.3,16.9,3.6,"Debt",{"v":3000000,"d":"3,000,000"},{"v":300973.5,"d":"300,974"},{"v":344150,"d":"344,150"},null,{"v":45123.5,"d":"45,124"}]
[1358,"UNEP","AFR","Zambia","Financially Closed","Renewable Energy-based Electricity Generation for Isolated Mini-grids","GEF - 3","2005-11-15",3.7,4.6,8.2,1.2,"Debt",{"v":2950000,"d":"2,950,000"},{"v":382000,"d":"382,000"},{"v":325000,"d":"325,000"},null,{"v":-43000,"d":"(43,000)"}]
[1361,"UNEP","SIDS","Cuba","Financially Closed","Generation and Delivery of Renewable Energy Based Modern Energy Services in Cuba; the case of Isla de la Juventud","GEF - 3","2005-03-20",6,10.5,16.5,1.7,"Debt",{"v":5337000,"d":"5,337,000"},{"v":382000,"d":"382,000"},{"v":325000,"d":"325,000"},null,{"v":44000,"d":"44,000"}]
[1413,"UNDP","LAC","Honduras","Financially Closed","Energy Efficiency Measures in the Honduran Commercial and Industry Sectors","GEF - 3","2004-01-15",1.1,1.6,2.8,1.4,"Risk Mitigation",{"v":975000,"d":"975,000"},{"v":146000,"d":"146,000"},{"v":25000,"d":"25,000"},null,{"v":46000,"d":"46,000"}]
[1532,"WB","Asia","Philippines","Financially Closed","Electric Cooperative System Loss Reduction Project","GEF - 3","2004-04-11",13.6,50.5,64.1,3.7,"Risk Mitigation",{"v":12000000,"d":"12,000,000"},{"v":1202000,"d":"1,202,000"},{"v":350000,"d":"350,000"},null,{"v":-48000,"d":"(48,000)"}]
[1541,"WB","ECA","Czech Republic, Estonia, Latvia, Lithuania, Slovak Republic, Regional","Project Implemented","Commercializing Energy Efficiency Finance (CEEF) - Tranche I","GEF - 2","2002-10-05",12.5,20.9,33.3,1.7,"Risk Mitigation",{"v":11250000,"d":"11,250,000"},{"v":1200000,"d":"1,200,000"},null,null,{"v":-50000,"d":"(50,000)"}]
[1571,"WB","LAC","Belize, Bolivia, Costa Rica, Ecuador, El Salvador, Mexico, Panama, Paraguay, Peru, Regional","Financially Closed","EcoEnterprises Fund","GEF - 2","2002-04-18",1.1,9,10.1,7.9,"Debt",{"v":1000000,"d":"1,000,000"},{"v":146000,"d":"146,000"},null,null,{"v":46000,"d":"46,000"}]
[1609,"UNEP","CEX","Belize, Cambodia, Cameroon, Costa Rica, Ghana, Guatemala, Indonesia, Nicaragua, Panama, Philippines, Tanzania, Thailand, Viet Nam, Zambia, Global","Project Implemented","Renewable Energy Enterprise Development - Seed Capital Access Facility","GEF - 3","2007-05-30",9.2,40.5,49.7,4.4,"Equity",{"v":8400000,"d":"8,400,000"},{"v":480000,"d":"480,000"},{"v":300000,"d":"300,000"},null,{"v":-20000,"d":"(20,000)"}]
[1646,"UNDP","ECA","Russian Federation","Financially Closed","Cost Effective Energy Efficiency Measures in the Russian Educational Sector","GEF - 2","2002-06-09",1.1,1.7,2.9,1.5,"Debt",{"v":975000,"d":"975,000"},{"v":146000,"d":"146,000"},{"v":25000,"d":"25,000"},null,{"v":46000,"d":"46,000"}]
[2000,"WB","CEX","Global","Project Implemented","Environmental Business Finance Program (EBFP)","GEF - 3","2004-03-23",20,80,100,4,"Risk Mitigation",{"v":20000000,"d":"20,000,000"},0,null,null,0]
[2105,"UNDP","ECA","Croatia","Financially Closed","Conservation and Sustainable Use of Biodiversity in the Dalmatian Coast through Greening Coastal Development","GEF - 3","2006-09-27",8,24.3,32.3,3.1,"Risk Mitigation",{"v":6988000,"d":"6,988,000"},{"v":657855,"d":"657,855"},{"v":321500,"d":"321,500"},null,{"v":-32645,"d":"(32,645)"}]
[2108,"WB","Asia","Philippines","Financially Closed","Electric Cooperative System Loss Reduction Project","GEF-3","2009-04-12",5.8,20,25.8,3.4,"Risk Mitigation",5300000,477000,null,null,{"v":-23000,"d":"(23,000)"}]
[2111,"WB","ECA","Russian Federation","Project Implemented","Russian Sustainable Energy Finance Program","GEF - 3","2005-03-16",7.6,23.3,30.9,3,"Risk Mitigation",{"v":7000000,"d":"7,000,000"},{"v":630000,"d":"630,000"},null,null,{"v":30000,"d":"30,000"}]
[2117,"WB","ECA","Bulgaria","Financially Closed","Energy Efficiency Project","GEF - 3","2005-02-13",11.1,39.5,50.7,3.5,"Risk Mitigation",{"v":10000000,"d":"10,000,000"},{"v":841000,"d":"841,000"},{"v":300000,"d":"300,000"},null,{"v":41000,"d":"41,000"}]
[2119,"UNEP","AFR","Eritrea, Ethiopia, Kenya, Rwanda, Tanzania, Uganda, Regional","Financially Closed","African Rift Geothermal Development Facility (ARGeo)","GEF - 3","2012-07-24",20.7,55.6,76.3,2.7,"Debt",{"v":17750000,"d":"17,750,000"},{"v":1660500,"d":"1,660,500"},{"v":1300000,"d":"1,300,000"},null,{"v":10500,"d":"10,500"}]
[2174,"WB","ECA","Czech Republic, Estonia, Latvia, Lithuania, Slovak Republic, Regional","Project Implemented","Commercializing Energy Efficiency Finance (CEEF) - Tranche II","GEF - 2","2003-08-10",9.9,57,66.9,5.8,"Risk Mitigation",{"v":9850000,"d":"9,850,000"},{"$nulls":3},{"v":-50000,"d":"(50,000)"}]
[2256,"UNDP","AFR","Namibia","Financially Closed","Barrier Removal to Namibian Renewable Energy Programme (NAMREP), Phase II","GEF - 3","2007-05-30",2.8,7.6,10.5,2.7,"Risk Mitigation",{"v":2600000,"d":"2,600,000"},{"v":234000,"d":"234,000"},null,null,{"v":34000,"d":"34,000"}]
[2531,"WB","ECA","North Macedonia","Financially Closed","Sustainable Energy Program","GEF - 3","2006-11-26",6.4,28.8,35.2,4.5,"Debt",{"v":5500000,"d":"5,500,000"},{"v":526500,"d":"526,500"},{"v":350000,"d":"350,000"},null,{"v":-23500,"d":"(23,500)"}]
[2619,"UNEP","ECA","Belarus, Bulgaria, Kazakhstan, North Macedonia, Romania, Russian Federation, Serbia, Ukraine, Regional","Financially Closed","Financing Energy Efficiency and Renewable Energy Investments for Climate Change Mitigation","GEF - 3","2006-10-24",3.3,9.3,12.5,2.8,"Mixed",{"v":3000000,"d":"3,000,000"},{"v":270000,"d":"270,000"},null,null,{"v":-30000,"d":"(30,000)"}]
[2624,"WB","Asia","China","Project Implemented","China Utility-Based Energy Efficiency Finance Program (CHUEE)","GEF - 3","2006-03-09",18,130.4,148.4,7.3,"Risk Mitigation",{"v":16500000,"d":"16,500,000"},{"v":1485000,"d":"1,485,000"},null,null,{"v":-15000,"d":"(15,000)"}]
[2670,"UNDP","LAC","Costa Rica, El Salvador, Guatemala, Honduras, Nicaragua, Regional","Financially Closed","Central American Markets for Biodiversity (CAMBio): Mainstreaming Biodiversity Conservation and Sustainable use within Micro, Small and Medium-sized Enterprise Development and Financing","GEF - 3","2006-03-19",11,17.8,28.8,1.6,"Risk Mitigation",{"v":10225000,"d":"10,225,000"},{"v":786500,"d":"786,500"},null,null,{"v":11500,"d":"11,500"}]
[2939,"UNDP","CEX","Global","Financially Closed","Solar Water Heating Market Transformation and Strengthening Initiative, Phase 1","GEF - 3","2008-07-28",13.4,19.2,32.5,1.4,"Risk Mitigation",{"v":12000000,"d":"12,000,000"},{"v":1105650,"d":"1,105,650"},{"v":285000,"d":"285,000"},null,{"v":-9350,"d":"(9,350)"}]
[2941,"UNDP","LAC","Brazil","Project Implemented","Market Transformation for Energy Efficiency in Buildings","GEF - 4","2009-07-28",15.1,64.8,79.9,4.3,"Mixed",{"v":13500000,"d":"13,500,000"},{"v":1339450,"d":"1,339,450"},{"v":250000,"d":"250,000"},null,{"v":-10550,"d":"(10,550)"}]
[2944,"WB","SIDS","Fiji, Marshall Islands, Papua New Guinea, Solomon Islands, Vanuatu, Regional","Under Implementation","Sustainable Energy Financing","GEF - 3","2007-05-17",10.3,21.6,31.9,2.1,"Risk Mitigation",{"v":9480000,"d":"9,480,000"},{"v":853200,"d":"853,200"},null,null,{"v":33200,"d":"33,200"}]
[3005,"IADB","LAC","Brazil, Mexico, Nicaragua, Panama, Regional","Project Implemented","CleanTech Fund","GEF - 3","2006-02-06",1.1,61.2,62.3,56.4,"Equity",{"v":995000,"d":"995,000"},{"v":89550,"d":"89,550"},null,null,{"v":-15450,"d":"(15,450)"}]
[3558,"WB","AFR","Cabo Verde, Liberia, Senegal, Sierra Leone, Regional","Financially Closed","SP-SFIF: West Africa Regional Fisheries Program (WARFP)","GEF - 3","2009-08-31",11.5,121,132.5,10.6,"Debt",{"v":10000000,"d":"10,000,000"},{"v":1000000,"d":"1,000,000"},{"v":450000,"d":"450,000"},null,{"v":-50000,"d":"(50,000)"}]
[3597,"EBRD","ECA","Russian Federation","Under Implementation","RUS Improving Urban Housing Efficiency in the Russian Federation","GEF - 4","2010-11-18",10.8,86.7,97.5,8,"Debt",{"v":9670000,"d":"9,670,000"},{"v":967000,"d":"967,000"},{"v":165000,"d":"165,000"},{"v":16500,"d":"16,500"},{"v":18500,"d":"18,500"}]
[3626,"UNEP","SIDS","Marshall Islands, Micronesia, Palau, Regional","Financially Closed","PAS: The Micronesia Challenge :  Sustainable Finance Systems for Island Protected Area Management - under the GEF Pacific Alliance for Sustainability","GEF - 4","2010-05-27",6,10.9,16.9,1.8,"Debt",{"v":5454545,"d":"5,454,545"},{"v":545454,"d":"545,454"},null,null,{"v":-1,"d":"(1)"}]
[3766,"IADB","LAC","Antigua and Barbuda, Barbados, Costa Rica, Guatemala, Guyana, Honduras, Panama,St. Lucia, Suriname, Regional","Financially Closed","Testing a Prototype Caribbean Regional Fund for Wastewater Management (CReW)","GEF - 4","2010-12-01",22.4,251.5,273.9,11.2,"Debt",{"v":20000000,"d":"20,000,000"},{"v":2000000,"d":"2,000,000"},{"v":380000,"d":"380,000"},{"v":38000,"d":"38,000"},{"v":18000,"d":"18,000"}]
[4176,"IADB","LAC","Chile","Project Implemented","Encouraging the Establishment and Consolidation of an Energy Service Market in Chile","GEF - 4","2010-12-07",2.6,12.9,15.5,5,"Risk Mitigation",{"v":2364000,"d":"2,364,000"},{"v":236400,"d":"236,400"},null,null,400]
[4257,"WB","CEX","Global","Project Implemented","The GEF Earth Fund: IFC Earth Fund Platform","GEF - 4","2008-08-31",32.7,90,122.7,2.8,"Mixed",{"v":30000000,"d":"30,000,000"},{"v":2700000,"d":"2,700,000"},null,null,0]
[4348,"EBRD","ECA","Kazakhstan","Under Implementation","Reducing GHG Emissions through a Resource Efficiency Transformation Programme (ResET) for Industries in Kazakhstan","GEF - 5","2012-02-28",7.8,38.5,46.3,5,"Debt",{"v":7090000,"d":"7,090,000"},{"v":673550,"d":"673,550"},null,null,{"v":-36450,"d":"(36,450)"}]
[4512,"ADB","Asia","Regional","Financially Closed","Pilot Asia-Pacific Climate Technology Network and Finance Center","GEF - 5","2012-05-30",12,75,87,6.2,"Equity",{"v":10909091,"d":"10,909,091"},{"v":1090909,"d":"1,090,909"},null,null,{"$f":"SUM(N68:Q68)-I68*10^6","v":0}]
[4626,"WB","AFR","Djibouti","Project Implemented","Geothermal Power Generation Program","GEF - 5","2013-03-11",6.6,22.5,29.1,3.4,"Debt",{"v":6036364,"d":"6,036,364"},{"v":603636,"d":"603,636"},null,null,{"v":40000,"d":"40,000"}]
[4753,"UNIDO","Asia","Pakistan","Under Implementation","Sustainable Energy Initiative for Industries","GEF - 5","2014-04-01",4,32.7,36.7,8.2,"Mixed",{"v":3550000,"d":"3,550,000"},{"v":355000,"d":"355,000"},{"v":70000,"d":"70,000"},{"v":7000,"d":"7,000"},{"v":-18000,"d":"(18,000)"}]
[4784,"UNIDO","ECA","Ukraine","Under Implementation","Introduction of Energy Management System Standard in Ukrainian Industry","GEF - 5","2013-10-20",6.2,39.8,45.9,6.4,"Mixed",{"v":5550000,"d":"5,550,000"},{"v":555000,"d":"555,000"},{"v":80000,"d":"80,000"},{"v":8000,"d":"8,000"},{"v":-7000,"d":"(7,000)"}]
[4788,"UNIDO","Asia","India","Project Implemented","Promoting Business Models for Increasing Penetration and Scaling up of Solar Energy","GEF - 5","2013-12-22",4.9,21.8,26.7,4.5,"Mixed",{"v":4365174,"d":"4,365,174"},{"v":436517,"d":"436,517"},{"v":80000,"d":"80,000"},{"v":8000,"d":"8,000"},{"v":-10309,"d":"(10,309)"}]
[4801,"UNDP","Asia","Viet Nam","Project Implemented","Promotion of Non-fired Brick (NFB) Production and Utilization","GEF - 5","2014-03-10",3.2,36.1,39.3,11.3,"Debt",{"v":2800000,"d":"2,800,000"},{"v":280000,"d":"280,000"},{"v":95000,"d":"95,000"},{"v":9500,"d":"9,500"},{"v":-15500,"d":"(15,500)"}]
[4890,"UNIDO","LAC","Uruguay","Project Implemented","Towards a Green Economy in Uruguay: Stimulating Sustainable Production Practices and Low-emission Technologies in Prioritized Sectors","GEF - 5","2013-11-18",3.8,19.8,23.6,5.2,"Debt",{"v":3392727,"d":"3,392,727"},{"v":339273,"d":"339,273"},{"v":50000,"d":"50,000"},{"v":5000,"d":"5,000"},{"v":-13000,"d":"(13,000)"}]
[4918,"WB","Asia","India","Under Implementation","Partial Risk Sharing Facility for Energy Efficiency","GEF - 5","2015-02-08",19.8,594.3,614.1,30,"Risk Mitigation",{"v":18000000,"d":"18,000,000"},{"v":1800000,"d":"1,800,000"},null,null,0]
[4929,"AfDB","AFR","Africa, Regional","Under Implementation","AfDB-PPP Public-Private Partnership Program","GEF - 5","2013-02-21",21.6,240,261.6,11.1,"Debt",{"v":20000000,"d":"20,000,000"},{"v":1600000,"d":"1,600,000"},null,null,0]
[4957,"WB","ECA","Turkey","Project Implemented","Small and Medium Enterprise Energy Efficiency Project","GEF - 5","2013-02-21",4,252.5,256.5,63.1,"Debt",{"v":3640000,"d":"3,640,000"},{"v":360000,"d":"360,000"},null,null,0]
[4959,"IADB","LAC","Latin America and Caribbean, Regional","Under Implementation","IDB-PPP MIF Public-Private Partnership Program","GEF - 5","2013-03-27",16.2,266.3,282.5,16.4,"Equity",{"v":15000000,"d":"15,000,000"},{"v":1200000,"d":"1,200,000"},null,null,0]
[5143,"EBRD","AFR","Egypt, Jordan, Morocco, Tunisia, Regional","Under Implementation","PPP-EBRD South Eastern Mediterranean EE/ ESCO Markets Platform (PROGRAM)","GEF - 5","2014-09-03",16.2,150,166.2,9.3,"Mixed",{"v":15000000,"d":"15,000,000"},{"v":1200000,"d":"1,200,000"},null,null,0]
[5388,"IADB","LAC","Regional","Under Implementation","PPP-IDB Sustainable Caribbean Basin Energy Fund (PROGRAM)","GEF - 5","2016-09-01",16.2,200,216.2,12.3,"Equity",{"v":15000000,"d":"15,000,000"},{"v":1200000,"d":"1,200,000"},null,null,0]
[5704,"UNIDO","AFR","South Africa","Under Implementation","Promoting Organic Waste-to-Energy and other Low-carbon Technologies in Small and Medium-scale Enterprises (SMMEs): Accelarating Biogas Market Development","GEF - 5","2016-01-13",4.7,25.5,30.2,5.4,"Mixed",{"v":4222110,"d":"4,222,110"},{"v":401100,"d":"401,100"},{"v":90000,"d":"90,000"},{"v":8550,"d":"8,550"},{"v":21760,"d":"21,760"}]
[5754,"IADB","LAC","Latin America and Caribbean,Regional","Under Implementation","IDB-GEF Climate-Smart Agriculture Fund for Latin America and the Caribbean (PROGRAM)","GEF - 5","2015-03-17",5.4,50.9,56.3,9.4,"Mixed",{"v":5000000,"d":"5,000,000"},{"v":400000,"d":"400,000"},null,null,0]
[6980,"WB","CEX","Global","Financially Closed","The International Lighting Efficiency Facility (iLEF)(non-grant)","GEF - 6","2015-05-10",1.3,50.3,51.6,38.2,"Debt",{"v":1200000,"d":"1,200,000"},{"v":114000,"d":"114,000"},null,null,{"v":14000,"d":"14,000"}]
[9043,"AfDB","AFR","Africa, Regional","Under Implementation","Investing in Renewable Energy Project Preparation under the Fund for Energy Inclusion (FEI)","GEF - 6","2018-06-13",11,955,966,87.2,"Debt",{"v":10000000,"d":"10,000,000"},{"v":950000,"d":"950,000"},null,null,{"v":-50000,"d":"(50,000)"}]
[9047,"EBRD","CEX","Albania, Armenia, Azerbaijan, Belarus, Bosnia-Herzegovina, Egypt, Georgia, Jordan, Moldova, Montenegro, Morocco, North Macedonia, Serbia, Tunisia, Turkey, Ukraine, Regional","Under Implementation","Green Logistics Program (non-grant)","GEF - 6","2016-02-21",16.4,155.3,171.6,9.5,"Debt",{"v":15000000,"d":"15,000,000"},{"v":1350000,"d":"1,350,000"},null,null,{"v":-49999.99999999814,"d":"(50,000)"}]
[9051,"AfDB","ECA","Regional","Under Implementation","Moringa Agro-forestry Fund for Africa (non-grant)","GEF - 6","2015-08-19",13.1,50.8,63.9,3.9,"Equity",{"v":12000000,"d":"12,000,000"},{"v":1080000,"d":"1,080,000"},null,null,{"v":-20000,"d":"(20,000)"}]
[9058,"IADB","LAC","Latin America and Caribbean, Regional","Under Implementation","Impact Investment in Support of the Implementation of the Nagoya Protocol on Access and Benefit Sharing (non-grant)","GEF - 6","2017-01-04",11,48.3,59.3,4.4,"Equity",{"v":10000000,"d":"10,000,000"},{"v":950000,"d":"950,000"},{"v":70000,"d":"70,000"},{"v":6650,"d":"6,650"},{"v":26650,"d":"26,650"}]
[9085,"DBSA","AFR","South Africa","CEO Endorsement Cleared","Equity Fund for the Small Projects Independent Power Producer Procurement Programme (SP-IPPPP)","GEF - 6","2017-06-08",16.6,190.5,207,11.5,"Equity",{"v":15000000,"d":"15,000,000"},{"v":1350000,"d":"1,350,000"},{"v":200000,"d":"200,000"},{"v":18000,"d":"18,000"},{"v":-32000.000000001863,"d":"(32,000)"}]
[9277,"IADB","LAC","Latin America and Caribbean, Regional","Under Implementation","Risk Mitigation Instrument for Land Restoration (Non-Grant)","GEF - 6","2017-09-26",16.4,120,136.4,7.3,"Risk Mitigation",{"v":15000000,"d":"15,000,000"},{"v":1350000,"d":"1,350,000"},null,null,{"v":-49999.99999999814,"d":"(50,000)"}]
[9370,"CI","Asia","Indonesia, Philippines, Regional","Under Implementation","(NGI) The Meloy Fund : A Fund for Sustainable Small-scale Fisheries in Southeast Asia","GEF - 6","2017-09-26",6.8,35.2,42,5.2,"Equity",{"v":6000000,"d":"6,000,000"},{"v":540000,"d":"540,000"},{"v":200000,"d":"200,000"},{"v":18000,"d":"18,000"},{"v":-42000,"d":"(42,000)"}]
[9563,"WB","SIDS","Seychelles","Under Implementation","Third South West Indian Ocean Fisheries Governance and Shared Growth Project (SWIOFish3)","GEF - 6","2017-06-15",11.4,54,65.4,4.7,"Risk Mitigation",{"v":10292110,"d":"10,292,110"},{"v":977750,"d":"977,750"},{"v":136986,"d":"136,986"},{"v":13014,"d":"13,014"},{"v":19860,"d":"19,860"}]
[9719,"UNEP","CEX","Global","Under Implementation","Piloting Innovative Investments for Sustainable Landscapes","GEF - 6","2018-02-05",2.2,52,54.2,23.2,"Equity",{"v":2000000,"d":"2,000,000"},{"v":190000,"d":"190,000"},{"v":50000,"d":"50,000"},{"v":4750,"d":"4,750"},{"v":44750,"d":"44,750"}]
[9914,"IUCN","CEX","Global","Project Implemented","CPIC Conservation Finance Initiative - Scaling up and Demonstrating the Value of Blended Finance in Conservation","GEF - 6","2019-05-06",9.2,102.8,112,11.2,"Equity",{"v":8250000,"d":"8,250,000"},{"v":742500,"d":"742,500"},{"v":200000,"d":"200,000"},{"v":18000,"d":"18,000"},{"v":10500,"d":"10,500"}]
[10322,"CI","CEX","Global","CEO Endorsement Cleared","The Food Securities Fund: A fund to finance sustainable supply chains  at scale in Emerging Markets","GEF - 7","2021-09-07",15,773.3,788.3,51.6,"Equity",{"v":13461468,"d":"13,461,468"},{"v":1211532,"d":"1,211,532"},{"v":300000,"d":"300,000"},{"v":27000,"d":"27,000"},0]
[10328,"EBRD","ECA","Albania, Bosnia-Herzegovina, Montenegro, North Macedonia, Serbia, Turkey, Regional","CEO Endorsement Cleared","Circular Economy Regional Initiative (CERI)","GEF - 7","2021-09-16",15,141.9,156.9,9.5,"Debt",{"v":13761468,"d":"13,761,468"},{"v":1238532,"d":"1,238,532"},null,null,0]
[10330,"WB","AFR","South Africa","CEO Endorsement Cleared","Wildlife Conservation Bond","GEF - 7","2021-06-03",15,178.5,193.5,11.9,"Debt",{"v":13761468,"d":"13,761,468"},{"v":1238532,"d":"1,238,532"},null,null,0]
[10336,"IADB","LAC","Argentina, Brazil, Colombia, Costa Rica, Ecuador, Guatemala, Honduras, Paraguay, Peru, Uruguay, Regional","CEO Endorsement Cleared","Agtech for inclusion and sustainability: SP Ventures'Regional Fund (Agventures II)","GEF - 7","2022-01-13",5.5,55,60.5,10.1,"Equity",{"v":5000000,"d":"5,000,000"},{"v":450000,"d":"450,000"},null,null,{"v":-50000,"d":"(50,000)"}]
[10497,"CI","CEX","Global","CEO Endorsement Cleared","AGRI3 A Forest Conservation and Sustainable Agriculture Fund for Developing Countries","GEF - 7","2022-10-05",15,151.5,166.5,10.1,"Equity",{"v":13461468,"d":"13,461,468"},{"v":1211532,"d":"1,211,532"},{"v":300000,"d":"300,000"},{"v":27000,"d":"27,000"},0]
["10500*","CI","CEX","Global","Council Approved","Livelihoods Carbon Fund 3 (LCF3)","GEF - 7","2023-06-02",15,111,126,7.4,"Equity",{"v":13461468,"d":"13,461,468"},{"v":1211532,"d":"1,211,532"},{"v":300000,"d":"300,000"},{"v":27000,"d":"27,000"},0]
[10667,"AfDB","AFR","Regional","CEO Endorsement Cleared ","COVID-19 Off-Grid Recovery Platform","GEF - 7","2022-06-07",14.4,57,71.4,4,"Debt",{"v":13000000,"d":"13,000,000"},{"v":1170000,"d":"1,170,000"},{"v":200000,"d":"200,000"},{"v":18000,"d":"18,000"},{"v":-12000,"d":"(12,000)"}]
["10766*","WB","CEX","Global","Council Approved","IFC-GEF Hotel Green Revitalization Program (HGRP)","GEF - 7","TBD",10,802.5,812.5,80.3,"Risk Mitigation",{"v":9132420,"d":"9,132,420"},{"v":867580,"d":"867,580"},null,null,0]
["10852*","CAF","LAC","Ecuador, Peru","Council Approved","Green Finance & Sustainable Agriculture in the Dry Forest Ecoregion of Ecuador and Peru","GEF-7","TBD",6.6,68.2,74.8,10.3,"Risk Mitigation",{"v":6000000,"d":"6,000,000"},{"v":540000,"d":"540,000"},{"v":100000,"d":"100,000"},{"v":9000,"d":"9,000"},{"v":49000,"d":"49,000"}]
["10937*","CI","LAC","Regional","Council Approved","The Selva Fund","GEF-7","TBD",11.1,77,88.1,6.9,"Equity",{"v":10000000,"d":"10,000,000"},{"v":900000,"d":"900,000"},{"v":200000,"d":"200,000"},{"v":18000,"d":"18,000"},{"v":18000,"d":"18,000"}]
[11062,"ADB","Asia","Regional","Council Approved","Natural Capital Fund (NCF): Investing in Nature-Positive Agri-Food Enterprises in Asia and the Pacific","GEF-8","TBD",15,646.4,661.4,43.1,"Equity",{"v":13761469,"d":"13,761,469"},{"v":1238531,"d":"1,238,531"},0,0,0]
[11065,"WB","LAC","Chile","Council Approved","Chile Green Hydrogen Facility Project","GEF-8","TBD",15,450,600,15,"Risk Mitigation",{"v":13761468,"d":"13,761,468"},{"v":1238532,"d":"1,238,532"},null,null,0]
[11066,"IADB","LAC","Regional","Council Approved","Yield Lab Opportunity Fund I: Accelerating technology and local innovation for sustainable and decarbonized food systems in Latin America and the Caribbean.","GEF-8","TBD",6.6,44,50.6,6.7,"Equity",{"v":6000000,"d":"6,000,000"},{"v":570000,"d":"570,000"},null,null,{"v":-30000,"d":"(30,000)"}]
[11068,"WB","Asia","India","Council Approved","Guarantee Mechanism for Renewable Biogas in India","GEF-8","TBD",15,705,720,47,"Risk Mitigation",{"v":13761468,"d":"13,761,468"},{"v":1238532,"d":"1,238,532"},null,null,0]
["Total",{"$nulls":7},{"$f":"SUM(I3:I107)","v":{"v":977.0000000000003,"d":"977.0"}},{"$f":"SUM(J3:J107)","v":{"v":10558.1,"d":"10,558.10"}},{"$f":"SUM(K3:K107)","v":{"v":11669.699999999999,"d":"11669.7"}},{"$f":"J108/I108","v":{"v":10.806653019447284,"d":"10.8"}}]

{"sheet":"Annex 1 11 12 2024","index":5,"n_rows":111,"n_cols":13,"rows_kept":111,"merged":[[0,0,1,0],[0,1,1,1],[0,2,1,2],[0,3,1,3],[0,4,1,4],[0,5,1,5],[0,6,1,6],[0,8,1,8],[0,9,1,9],[0,10,1,10],[0,11,1,11],[0,12,1,12],[108,0,108,7]]}
["GEF ID","Agency","Region","Country","Project Status","Title","GEF Phase","CEO Approval","GEF Amount ($M)**","Co-Financing ($M)","Total Project Cost ($M)","Co-financing Ratio","Type of Non-Grant Instrument (summarized)"]
[{"$nulls":7},"/Endorsement date"]
[13,"UNDP","Asia","Thailand","Financially Closed","Removal of Barriers to Biomass Power Generation and Co-generation","GEF - 2","2001-01-22",7.2,66.4,73.6,9.2,"Risk Mitigation"]
[91,"WB","CEX","Global","Project Implemented","Small and Medium Scale Enterprise Program (IFC)","GEF - 1","1994-07-01",4.3,15.2,19.5,3.5,"Mixed"]
[111,"WB","ECA","Hungary","Project Implemented","Energy Efficiency Co-Financing Program","GEF - 1","1997-05-10",5,20,25,4,"Risk Mitigation"]
[112,"WB","CEX","India, Kenya, Morocco, Global","Project Implemented","Photovoltaic Market Transformation Initiative (IFC)","GEF - 1","1998-06-16",30.4,90,120.4,3,"Mixed"]
[135,"WB","CEX","Global","Financially Closed","Small and Medium Scale Enterprise Program (IFC, first replenishment)","GEF - 1","1997-02-09",16.5,36,52.5,2.2,"Mixed"]
[267,"UNDP","CEX","Egypt, Palestinian Authority, Regional","Financially Closed","Energy Efficiency Improvements and Greenhouse Gas Reductions","GEF - 1","1998-06-15",6.4,1.8,8.1,0.3,"Risk Mitigation"]
[314,"UNDP","LAC","Bolivia","Financially Closed","A Program for Rural Electrification with Renewable Energy Using the Popular Participation Law","GEF - 1","1999-05-27",4.2,4.1,8.3,1,"Debt"]
[377,"UNDP","AFR","Sudan","Financially Closed","Community Based Rangeland Rehabilitation for Carbon Sequestration","Pilot Phase","1994-08-01",1.5,0.1,1.6,0.1,"Debt"]
[386,"UNDP","Asia","India","Financially Closed","Optimizing Development of Small Hydel Resources in Hilly Areas","Pilot Phase","1991-12-01",7.5,7.1,14.6,1,"Debt"]
[391,"UNDP","Asia","Pakistan","Financially Closed","Fuel Efficiency in the Road Transport Sector","Pilot Phase","1992-05-01",7,0,7,0,"Debt"]
[448,"UNDP","Asia","Malaysia","Financially Closed","Industrial Energy Efficiency Improvement Project","GEF - 1","1999-06-07",7.3,12.6,19.9,1.7,"Debt"]
[540,"WB","Asia","Thailand","Financially Closed","Building Chiller Replacement Program","GEF - 2","2001-04-22",2.5,88,90.5,35.2,"Debt"]
[622,"UNDP","Asia","China","Project Implemented","Energy Conservation and GHG Emission Reduction in Chinese Township and Village Enterprises (TVE), Phase II","GEF - 2","2000-10-10",8,10.6,18.5,1.3,"Debt"]
[641,"UNDP","AFR","Malawi","Financially Closed","Barrier Removal to Renewable Energy Programme","GEF - 2","2000-10-14",3.4,7.3,10.7,2.1,"Risk Mitigation"]
[646,"UNDP","AFR","Morocco","Financially Closed","Market Development for Solar Water Heaters","GEF - 2","2000-04-23",3,2.4,5.4,0.8,"Risk Mitigation"]
[658,"UNDP","ECA","Slovenia","Financially Closed","Removing Barriers to the Increased Use of Biomass as an Energy Source","GEF - 2","2001-02-04",4.4,7.9,12.3,1.8,"Debt"]
[660,"UNDP","AFR","Sudan","Financially Closed","Barrier Removal to Secure PV Market Penetration in Semi-Urban Sudan","GEF - 2","1999-03-04",0.8,1,1.7,1.3,"Risk Mitigation"]
[786,"WB","ECA","Poland","Financially Closed","Krakow Energy Efficiency Project","GEF - 2","2004-09-20",12.1,88,100.1,7.3,"Risk Mitigation"]
[843,"UNDP","LAC","Chile","Financially Closed","Removal of Barriers to Rural Electrification with Renewable Energy","GEF - 2","2001-06-27",6.4,26.3,32.8,4.1,"Risk Mitigation"]
[882,"UNDP","ECA","Croatia","Financially Closed","Removing Barriers to Improving Energy Efficiency of the Residential and Service Sectors","GEF - 2","2004-08-08",5,8.7,13.6,1.7,"Risk Mitigation"]
[883,"WB","ECA","Romania","Financially Closed","Energy Efficiency Project","GEF - 2","2002-08-19",11.4,40,51.4,3.5,"Debt"]
[935,"UNDP","AFR","Namibia","Financially Closed","Barrier Removal to Namibian Renewable Energy Programme, Phase I","GEF - 2","2003-01-12",2.9,4.7,7.7,1.6,"Risk Mitigation"]
[944,"WB","ECA","Croatia","Financially Closed","Energy Efficiency Project","GEF - 2","2003-08-24",7.8,23.4,31.2,3,"Risk Mitigation"]
[1061,"WB","LAC","Peru","Financially Closed","Inka Terra: An Innovative Partnership for Self-Financing Biodiversity Conservation & Community Development","GEF - 3","2003-12-18",0.9,11.4,12.3,12.7,"Debt"]
[1137,"UNDP","ECA","Georgia","Financially Closed","Promoting the Use of Renewable Energy Resources for Local Energy Supply","GEF - 3","2004-02-10",5.1,8.7,13.8,1.7,"Debt"]
[1198,"UNDP","ECA","Belarus","Financially Closed","Biomass Energy for Heating and Hot Water Supply","GEF - 3","2003-06-25",3.8,5.6,9.3,1.5,"Debt"]
[1199,"UNDP","Asia","India","Financially Closed","Removal of Barriers to Biomass Power Generation, Part I","GEF - 3","2005-01-12",6,33.5,39.5,5.6,"Risk Mitigation"]
[1237,"WB","Asia","China","Financially Closed","Energy Conservation Project,  Phase II","GEF - 2","2002-09-29",29.1,255.2,284.3,8.8,"Risk Mitigation"]
[1245,"UNDP","AFR","Lesotho","Financially Closed","Renewable Energy-based Rural Electrification","GEF - 3","2006-09-21",3.2,4.3,7.5,1.3,"Risk Mitigation"]
[1264,"UNDP","Asia","Philippines","Financially Closed","Capacity Building to Remove Barriers to Renewable Energy Development","GEF - 2","2002-09-23",6.8,18.3,25.2,2.7,"Risk Mitigation"]
[1265,"UNDP","ECA","Poland","Financially Closed","Polish Energy Efficiency Motors Programme","GEF - 2","2003-11-04",4.9,17.7,22.6,3.6,"Debt"]
[1291,"WB","ECA","Croatia","Financially Closed","Renewable Energy Resources Project","GEF - 2","2005-05-22",6.7,21.4,28.2,3.2,"Mixed"]
[1316,"WB","ECA","Hungary","Financially Closed","Energy Efficiency Co-Financing Program 2 (HEECP2)","GEF - 2","2001-10-02",0.9,93.2,94.1,99.1,"Risk Mitigation"]
[1335,"UNDP","AFR","Egypt","Project Implemented","Bioenergy for Sustainable Rural Development","GEF - 3","2008-07-13",3.6,13.3,16.9,3.6,"Debt"]
[1358,"UNEP","AFR","Zambia","Financially Closed","Renewable Energy-based Electricity Generation for Isolated Mini-grids","GEF - 3","2005-11-15",3.7,4.6,8.2,1.2,"Debt"]
[1361,"UNEP","SIDS","Cuba","Financially Closed","Generation and Delivery of Renewable Energy Based Modern Energy Services in Cuba; the case of Isla de la Juventud","GEF - 3","2005-03-20",6,10.5,16.5,1.7,"Debt"]
[1413,"UNDP","LAC","Honduras","Financially Closed","Energy Efficiency Measures in the Honduran Commercial and Industry Sectors","GEF - 3","2004-01-15",1.1,1.6,2.8,1.4,"Risk Mitigation"]
[1532,"WB","Asia","Philippines","Financially Closed","Electric Cooperative System Loss Reduction Project","GEF - 3","2004-04-11",13.6,50.5,64.1,3.7,"Risk Mitigation"]
[1541,"WB","ECA","Czech Republic, Estonia, Latvia, Lithuania, Slovak Republic, Regional","Project Implemented","Commercializing Energy Efficiency Finance (CEEF) - Tranche I","GEF - 2","2002-10-05",12.5,20.9,33.3,1.7,"Risk Mitigation"]
[1571,"WB","LAC","Belize, Bolivia, Costa Rica, Ecuador, El Salvador, Mexico, Panama, Paraguay, Peru, Regional","Financially Closed","EcoEnterprises Fund","GEF - 2","2002-04-18",1.1,9,10.1,7.9,"Debt"]
[1609,"UNEP","CEX","Belize, Cambodia, Cameroon, Costa Rica, Ghana, Guatemala, Indonesia, Nicaragua, Panama, Philippines, Tanzania, Thailand, Viet Nam, Zambia, Global","Project Implemented","Renewable Energy Enterprise Development - Seed Capital Access Facility","GEF - 3","2007-05-30",9.2,40.5,49.7,4.4,"Equity"]
[1646,"UNDP","ECA","Russian Federation","Financially Closed","Cost Effective Energy Efficiency Measures in the Russian Educational Sector","GEF - 2","2002-06-09",1.1,1.7,2.9,1.5,"Debt"]
[2000,"WB","CEX","Global","Project Implemented","Environmental Business Finance Program (EBFP)","GEF - 3","2004-03-23",20,80,100,4,"Risk Mitigation"]
[2105,"UNDP","ECA","Croatia","Financially Closed","Conservation and Sustainable Use of Biodiversity in the Dalmatian Coast through Greening Coastal Development","GEF - 3","2006-09-27",8,24.3,32.3,3.1,"Risk Mitigation"]
[2108,"WB","Asia","Philippines","Financially Closed","Electric Cooperative System Loss Reduction Project","GEF-3","2009-04-12",5.8,20,25.8,3.4,"Risk Mitigation"]
[2111,"WB","ECA","Russian Federation","Project Implemented","Russian Sustainable Energy Finance Program","GEF - 3","2005-03-16",7.6,23.3,30.9,3,"Risk Mitigation"]
[2117,"WB","ECA","Bulgaria","Financially Closed","Energy Efficiency Project","GEF - 3","2005-02-13",11.1,39.5,50.7,3.5,"Risk Mitigation"]
[2119,"UNEP","AFR","Eritrea, Ethiopia, Kenya, Rwanda, Tanzania, Uganda, Regional","Financially Closed","African Rift Geothermal Development Facility (ARGeo)","GEF - 3","2012-07-24",20.7,55.6,76.3,2.7,"Debt"]
[2174,"WB","ECA","Czech Republic, Estonia, Latvia, Lithuania, Slovak Republic, Regional","Project Implemented","Commercializing Energy Efficiency Finance (CEEF) - Tranche II","GEF - 2","2003-08-10",9.9,57,66.9,5.8,"Risk Mitigation"]
[2256,"UNDP","AFR","Namibia","Financially Closed","Barrier Removal to Namibian Renewable Energy Programme (NAMREP), Phase II","GEF - 3","2007-05-30",2.8,7.6,10.5,2.7,"Risk Mitigation"]
[2531,"WB","ECA","North Macedonia","Financially Closed","Sustainable Energy Program","GEF - 3","2006-11-26",6.4,28.8,35.2,4.5,"Debt"]
[2619,"UNEP","ECA","Belarus, Bulgaria, Kazakhstan, North Macedonia, Romania, Russian Federation, Serbia, Ukraine, Regional","Financially Closed","Financing Energy Efficiency and Renewable Energy Investments for Climate Change Mitigation","GEF - 3","2006-10-24",3.3,9.3,12.5,2.8,"Mixed"]
[2624,"WB","Asia","China","Project Implemented","China Utility-Based Energy Efficiency Finance Program (CHUEE)","GEF - 3","2006-03-09",18,130.4,148.4,7.3,"Risk Mitigation"]
[2670,"UNDP","LAC","Costa Rica, El Salvador, Guatemala, Honduras, Nicaragua, Regional","Financially Closed","Central American Markets for Biodiversity (CAMBio): Mainstreaming Biodiversity Conservation and Sustainable use within Micro, Small and Medium-sized Enterprise Development and Financing","GEF - 3","2006-03-19",11,17.8,28.8,1.6,"Risk Mitigation"]
[2939,"UNDP","CEX","Global","Financially Closed","Solar Water Heating Market Transformation and Strengthening Initiative, Phase 1","GEF - 3","2008-07-28",13.4,19.2,32.5,1.4,"Risk Mitigation"]
[2941,"UNDP","LAC","Brazil","Project Implemented","Market Transformation for Energy Efficiency in Buildings","GEF - 4","2009-07-28",15.1,64.8,79.9,4.3,"Mixed"]
[2944,"WB","SIDS","Fiji, Marshall Islands, Papua New Guinea, Solomon Islands, Vanuatu, Regional","Under Implementation","Sustainable Energy Financing","GEF - 3","2007-05-17",10.3,21.6,31.9,2.1,"Risk Mitigation"]
[3005,"IADB","LAC","Brazil, Mexico, Nicaragua, Panama, Regional","Project Implemented","CleanTech Fund","GEF - 3","2006-02-06",1.1,61.2,62.3,56.4,"Equity"]
[3558,"WB","AFR","Cabo Verde, Liberia, Senegal, Sierra Leone, Regional","Financially Closed","SP-SFIF: West Africa Regional Fisheries Program (WARFP)","GEF - 3","2009-08-31",11.5,121,132.5,10.6,"Debt"]
[3597,"EBRD","ECA","Russian Federation","Under Implementation","RUS Improving Urban Housing Efficiency in the Russian Federation","GEF - 4","2010-11-18",10.8,86.7,97.5,8,"Debt"]
[3626,"UNEP","SIDS","Marshall Islands, Micronesia, Palau, Regional","Financially Closed","PAS: The Micronesia Challenge :  Sustainable Finance Systems for Island Protected Area Management - under the GEF Pacific Alliance for Sustainability","GEF - 4","2010-05-27",6,10.9,16.9,1.8,"Debt"]
[3766,"IADB","LAC","Antigua and Barbuda, Barbados, Costa Rica, Guatemala, Guyana, Honduras, Panama,St. Lucia, Suriname, Regional","Financially Closed","Testing a Prototype Caribbean Regional Fund for Wastewater Management (CReW)","GEF - 4","2010-12-01",22.4,251.5,273.9,11.2,"Debt"]
[4176,"IADB","LAC","Chile","Project Implemented","Encouraging the Establishment and Consolidation of an Energy Service Market in Chile","GEF - 4","2010-12-07",2.6,12.9,15.5,5,"Risk Mitigation"]
[4257,"WB","CEX","Global","Project Implemented","The GEF Earth Fund: IFC Earth Fund Platform","GEF - 4","2008-08-31",32.7,90,122.7,2.8,"Mixed"]
[4348,"EBRD","ECA","Kazakhstan","Under Implementation","Reducing GHG Emissions through a Resource Efficiency Transformation Programme (ResET) for Industries in Kazakhstan","GEF - 5","2012-02-28",7.8,38.5,46.3,5,"Debt"]
[4512,"ADB","Asia","Regional","Financially Closed","Pilot Asia-Pacific Climate Technology Network and Finance Center","GEF - 5","2012-05-30",12,75,87,6.2,"Equity"]
[4626,"WB","AFR","Djibouti","Project Implemented","Geothermal Power Generation Program","GEF - 5","2013-03-11",6.6,22.5,29.1,3.4,"Debt"]
[4753,"UNIDO","Asia","Pakistan","Under Implementation","Sustainable Energy Initiative for Industries","GEF - 5","2014-04-01",4,32.7,36.7,8.2,"Mixed"]
[4784,"UNIDO","ECA","Ukraine","Under Implementation","Introduction of Energy Management System Standard in Ukrainian Industry","GEF - 5","2013-10-20",6.2,39.8,45.9,6.4,"Mixed"]
[4788,"UNIDO","Asia","India","Project Implemented","Promoting Business Models for Increasing Penetration and Scaling up of Solar Energy","GEF - 5","2013-12-22",4.9,21.8,26.7,4.5,"Mixed"]
[4801,"UNDP","Asia","Viet Nam","Project Implemented","Promotion of Non-fired Brick (NFB) Production and Utilization","GEF - 5","2014-03-10",3.2,36.1,39.3,11.3,"Debt"]
[4890,"UNIDO","LAC","Uruguay","Project Implemented","Towards a Green Economy in Uruguay: Stimulating Sustainable Production Practices and Low-emission Technologies in Prioritized Sectors","GEF - 5","2013-11-18",3.8,19.8,23.6,5.2,"Debt"]
[4918,"WB","Asia","India","Under Implementation","Partial Risk Sharing Facility for Energy Efficiency","GEF - 5","2015-02-08",19.8,594.3,614.1,30,"Risk Mitigation"]
[4929,"AfDB","AFR","Africa, Regional","Under Implementation","AfDB-PPP Public-Private Partnership Program","GEF - 5","2013-02-21",21.6,240,261.6,11.1,"Debt"]
[4957,"WB","ECA","Turkey","Project Implemented","Small and Medium Enterprise Energy Efficiency Project","GEF - 5","2013-02-21",4,252.5,256.5,63.1,"Debt"]
[4959,"IADB","LAC","Latin America and Caribbean, Regional","Under Implementation","IDB-PPP MIF Public-Private Partnership Program","GEF - 5","2013-03-27",16.2,266.3,282.5,16.4,"Equity"]
[5143,"EBRD","AFR","Egypt, Jordan, Morocco, Tunisia, Regional","Under Implementation","PPP-EBRD South Eastern Mediterranean EE/ ESCO Markets Platform (PROGRAM)","GEF - 5","2014-09-03",16.2,150,166.2,9.3,"Mixed"]
[5388,"IADB","LAC","Regional","Under Implementation","PPP-IDB Sustainable Caribbean Basin Energy Fund (PROGRAM)","GEF - 5","2016-09-01",16.2,200,216.2,12.3,"Equity"]
[5704,"UNIDO","AFR","South Africa","Under Implementation","Promoting Organic Waste-to-Energy and other Low-carbon Technologies in Small and Medium-scale Enterprises (SMMEs): Accelarating Biogas Market Development","GEF - 5","2016-01-13",4.7,25.5,30.2,5.4,"Mixed"]
[5754,"IADB","LAC","Latin America and Caribbean,Regional","Under Implementation","IDB-GEF Climate-Smart Agriculture Fund for Latin America and the Caribbean (PROGRAM)","GEF - 5","2015-03-17",5.4,50.9,56.3,9.4,"Mixed"]
[6980,"WB","CEX","Global","Financially Closed","The International Lighting Efficiency Facility (iLEF)(non-grant)","GEF - 6","2015-05-10",1.3,50.3,51.6,38.2,"Debt"]
[9043,"AfDB","AFR","Africa, Regional","Under Implementation","Investing in Renewable Energy Project Preparation under the Fund for Energy Inclusion (FEI)","GEF - 6","2018-06-13",11,955,966,87.2,"Debt"]
[9047,"EBRD","CEX","Albania, Armenia, Azerbaijan, Belarus, Bosnia-Herzegovina, Egypt, Georgia, Jordan, Moldova, Montenegro, Morocco, North Macedonia, Serbia, Tunisia, Turkey, Ukraine, Regional","Under Implementation","Green Logistics Program (non-grant)","GEF - 6","2016-02-21",16.4,155.3,171.6,9.5,"Debt"]
[9051,"AfDB","ECA","Regional","Under Implementation","Moringa Agro-forestry Fund for Africa (non-grant)","GEF - 6","2015-08-19",13.1,50.8,63.9,3.9,"Equity"]
[9058,"IADB","LAC","Latin America and Caribbean, Regional","Under Implementation","Impact Investment in Support of the Implementation of the Nagoya Protocol on Access and Benefit Sharing (non-grant)","GEF - 6","2017-01-04",11,48.3,59.3,4.4,"Equity"]
[9085,"DBSA","AFR","South Africa","CEO Endorsement Cleared","Equity Fund for the Small Projects Independent Power Producer Procurement Programme (SP-IPPPP)","GEF - 6","2017-06-08",16.6,190.5,207,11.5,"Equity"]
[9277,"IADB","LAC","Latin America and Caribbean, Regional","Under Implementation","Risk Mitigation Instrument for Land Restoration (Non-Grant)","GEF - 6","2017-09-26",16.4,120,136.4,7.3,"Risk Mitigation"]
[9370,"CI","Asia","Indonesia, Philippines, Regional","Under Implementation","(NGI) The Meloy Fund : A Fund for Sustainable Small-scale Fisheries in Southeast Asia","GEF - 6","2017-09-26",6.8,35.2,42,5.2,"Equity"]
[9563,"WB","SIDS","Seychelles","Under Implementation","Third South West Indian Ocean Fisheries Governance and Shared Growth Project (SWIOFish3)","GEF - 6","2017-06-15",11.4,54,65.4,4.7,"Risk Mitigation"]
[9719,"UNEP","CEX","Global","Under Implementation","Piloting Innovative Investments for Sustainable Landscapes","GEF - 6","2018-02-05",2.2,52,54.2,23.2,"Equity"]
[9914,"IUCN","CEX","Global","Project Implemented","CPIC Conservation Finance Initiative - Scaling up and Demonstrating the Value of Blended Finance in Conservation","GEF - 6","2019-05-06",9.2,102.8,112,11.2,"Equity"]
[10322,"CI","CEX","Global","Under Implementation","The Food Securities Fund: A fund to finance sustainable supply chains  at scale in Emerging Markets","GEF - 7","2021-09-07",15,773.3,788.3,51.6,"Equity"]
[10328,"EBRD","ECA","Albania, Bosnia-Herzegovina, Montenegro, North Macedonia, Serbia, Turkey, Regional","CEO Endorsement Cleared","Circular Economy Regional Initiative (CERI)","GEF - 7","2021-09-16",15,141.9,156.9,9.5,"Debt"]
[10330,"WB","AFR","South Africa","Under Implementation","Wildlife Conservation Bond","GEF - 7","2021-06-03",15,178.5,193.5,11.9,"Debt"]
[10336,"IADB","LAC","Argentina, Brazil, Colombia, Costa Rica, Ecuador, Guatemala, Honduras, Paraguay, Peru, Uruguay, Regional","Under Implementation","Agtech for inclusion and sustainability: SP Ventures'Regional Fund (Agventures II)","GEF - 7","2022-01-13",5.5,55,60.5,10.1,"Equity"]
[10497,"CI","CEX","Global","Under Implementation","AGRI3 A Forest Conservation and Sustainable Agriculture Fund for Developing Countries","GEF - 7","2022-10-05",15,151.5,166.5,10.1,"Equity"]
[10500,"CI","CEX","Global","CEO Endorsement Cleared","Livelihoods Carbon Fund 3 (LCF3)","GEF - 7","2023-06-02",15,111,126,7.4,"Equity"]
[10667,"AfDB","AFR","Regional","Under Implementation","COVID-19 Off-Grid Recovery Platform","GEF - 7","2022-06-07",14.4,57,71.4,4,"Debt"]
["11062*","ADB","Asia","Regional","Council Approved","Natural Capital Fund (NCF): Investing in Nature-Positive Agri-Food Enterprises in Asia and the Pacific","GEF-8","TBD",15,646.4,661.4,43.1,"Equity"]
[11066,"IADB","LAC","Regional","Under Implementation","Yield Lab Opportunity Fund I: Accelerating technology and local innovation for sustainable and decarbonized food systems in Latin America and the Caribbean.","GEF-8","2024-03-11",6.6,44,50.6,6.7,"Equity"]
["11064*","DBSA","AFR","South Africa","Council Approved","Private Sector Energy Efficiency Programme Phase 2 (PSEEP2)","GEF-8","TBD",16.3,509,525.3,31.2,"Risk Mitigation"]
["11068*","WB","Asia","India","Council Approved","Guarantee Mechanism for Renewable Biogas in India","GEF-8","TBD",15,705,720,47,"Risk Mitigation"]
["11323*","WB","Asia","Indonesia","Council Approved","Indonesia Coral Bond","GEF-8","TBD",15,156.1,171.1,12.6,"Reimbursable grant"]
["11324*","IADB","LAC","Regional","Council Approved","Innovative use of financial instruments for Biodiversity Conservation and Restoration in Latin America and the Caribbean","GEF-8","TBD",43.8,641.3,684.8,12.8,"Guarantee"]
["11326*","WB","CEX","Global","Council Approved","IFC/GEF Green Global Supply Chain Decarbonization Platform","GEF-8","TBD",15.1,150.1,165.1,36.5,"Debt"]
["11327*","Funbio","LAC","Brazil","Council Approved","Living Amazon Mechanism","GEF-8","TBD",6.8,46.6,53.4,10.6,"Reimbursable grant"]
["Total",{"$nulls":7},{"v":1032,"d":"1,032"},{"v":10677,"d":"10,677"},{"v":11709,"d":"11,709"},10.3]
[{"$nulls":9},{"$f":"SUM(J3:J108)","v":10663.5}]
[null,{"$f":"128+376.7","v":504.7}]

{"sheet":"Annex 1 11 13 2024","index":6,"n_rows":109,"n_cols":13,"rows_kept":109,"merged":[[0,0,1,0],[0,1,1,1],[0,2,1,2],[0,3,1,3],[0,4,1,4],[0,5,1,5],[0,6,1,6],[0,8,1,8],[0,9,1,9],[0,10,1,10],[0,11,1,11],[0,12,1,12],[108,0,108,7]]}
["GEF ID","Agency","Region","Country","Project Status","Title","GEF Phase","CEO Approval","GEF Amount ($M)**","Co-Financing ($M)","Total Project Cost ($M)","Co-financing Ratio","Type of Non-Grant Instrument (summarized)"]
[{"$nulls":7},"/Endorsement date"]
[13,"UNDP","Asia","Thailand","Financially Closed","Removal of Barriers to Biomass Power Generation and Co-generation","GEF - 2","2001-01-22",7.2,66.4,73.6,9.2,"Risk Mitigation"]
[91,"WB","CEX","Global","Project Implemented","Small and Medium Scale Enterprise Program (IFC)","GEF - 1","1994-07-01",4.3,15.2,19.5,3.5,"Mixed"]
[111,"WB","ECA","Hungary","Project Implemented","Energy Efficiency Co-Financing Program","GEF - 1","1997-05-10",5,20,25,4,"Risk Mitigation"]
[112,"WB","CEX","India, Kenya, Morocco, Global","Project Implemented","Photovoltaic Market Transformation Initiative (IFC)","GEF - 1","1998-06-16",30.4,90,120.4,3,"Mixed"]
[135,"WB","CEX","Global","Financially Closed","Small and Medium Scale Enterprise Program (IFC, first replenishment)","GEF - 1","1997-02-09",16.5,36,52.5,2.2,"Mixed"]
[267,"UNDP","CEX","Egypt, Palestinian Authority, Regional","Financially Closed","Energy Efficiency Improvements and Greenhouse Gas Reductions","GEF - 1","1998-06-15",6.4,1.8,8.1,0.3,"Risk Mitigation"]
[314,"UNDP","LAC","Bolivia","Financially Closed","A Program for Rural Electrification with Renewable Energy Using the Popular Participation Law","GEF - 1","1999-05-27",4.2,4.1,8.3,1,"Debt"]
[377,"UNDP","AFR","Sudan","Financially Closed","Community Based Rangeland Rehabilitation for Carbon Sequestration","Pilot Phase","1994-08-01",1.5,0.1,1.6,0.1,"Debt"]
[386,"UNDP","Asia","India","Financially Closed","Optimizing Development of Small Hydel Resources in Hilly Areas","Pilot Phase","1991-12-01",7.5,7.1,14.6,1,"Debt"]
[391,"UNDP","Asia","Pakistan","Financially Closed","Fuel Efficiency in the Road Transport Sector","Pilot Phase","1992-05-01",7,0,7,0,"Debt"]
[448,"UNDP","Asia","Malaysia","Financially Closed","Industrial Energy Efficiency Improvement Project","GEF - 1","1999-06-07",7.3,12.6,19.9,1.7,"Debt"]
[540,"WB","Asia","Thailand","Financially Closed","Building Chiller Replacement Program","GEF - 2","2001-04-22",2.5,88,90.5,35.2,"Debt"]
[622,"UNDP","Asia","China","Project Implemented","Energy Conservation and GHG Emission Reduction in Chinese Township and Village Enterprises (TVE), Phase II","GEF - 2","2000-10-10",8,10.6,18.5,1.3,"Debt"]
[641,"UNDP","AFR","Malawi","Financially Closed","Barrier Removal to Renewable Energy Programme","GEF - 2","2000-10-14",3.4,7.3,10.7,2.1,"Risk Mitigation"]
[646,"UNDP","AFR","Morocco","Financially Closed","Market Development for Solar Water Heaters","GEF - 2","2000-04-23",3,2.4,5.4,0.8,"Risk Mitigation"]
[658,"UNDP","ECA","Slovenia","Financially Closed","Removing Barriers to the Increased Use of Biomass as an Energy Source","GEF - 2","2001-02-04",4.4,7.9,12.3,1.8,"Debt"]
[660,"UNDP","AFR","Sudan","Financially Closed","Barrier Removal to Secure PV Market Penetration in Semi-Urban Sudan","GEF - 2","1999-03-04",0.8,1,1.7,1.3,"Risk Mitigation"]
[786,"WB","ECA","Poland","Financially Closed","Krakow Energy Efficiency Project","GEF - 2","2004-09-20",12.1,88,100.1,7.3,"Risk Mitigation"]
[843,"UNDP","LAC","Chile","Financially Closed","Removal of Barriers to Rural Electrification with Renewable Energy","GEF - 2","2001-06-27",6.4,26.3,32.8,4.1,"Risk Mitigation"]
[882,"UNDP","ECA","Croatia","Financially Closed","Removing Barriers to Improving Energy Efficiency of the Residential and Service Sectors","GEF - 2","2004-08-08",5,8.7,13.6,1.7,"Risk Mitigation"]
[883,"WB","ECA","Romania","Financially Closed","Energy Efficiency Project","GEF - 2","2002-08-19",11.4,40,51.4,3.5,"Debt"]
[935,"UNDP","AFR","Namibia","Financially Closed","Barrier Removal to Namibian Renewable Energy Programme, Phase I","GEF - 2","2003-01-12",2.9,4.7,7.7,1.6,"Risk Mitigation"]
[944,"WB","ECA","Croatia","Financially Closed","Energy Efficiency Project","GEF - 2","2003-08-24",7.8,23.4,31.2,3,"Risk Mitigation"]
[1061,"WB","LAC","Peru","Financially Closed","Inka Terra: An Innovative Partnership for Self-Financing Biodiversity Conservation & Community Development","GEF - 3","2003-12-18",0.9,11.4,12.3,12.7,"Debt"]
[1137,"UNDP","ECA","Georgia","Financially Closed","Promoting the Use of Renewable Energy Resources for Local Energy Supply","GEF - 3","2004-02-10",5.1,8.7,13.8,1.7,"Debt"]
[1198,"UNDP","ECA","Belarus","Financially Closed","Biomass Energy for Heating and Hot Water Supply","GEF - 3","2003-06-25",3.8,5.6,9.3,1.5,"Debt"]
[1199,"UNDP","Asia","India","Financially Closed","Removal of Barriers to Biomass Power Generation, Part I","GEF - 3","2005-01-12",6,33.5,39.5,5.6,"Risk Mitigation"]
[1237,"WB","Asia","China","Financially Closed","Energy Conservation Project,  Phase II","GEF - 2","2002-09-29",29.1,255.2,284.3,8.8,"Risk Mitigation"]
[1245,"UNDP","AFR","Lesotho","Financially Closed","Renewable Energy-based Rural Electrification","GEF - 3","2006-09-21",3.2,4.3,7.5,1.3,"Risk Mitigation"]
[1264,"UNDP","Asia","Philippines","Financially Closed","Capacity Building to Remove Barriers to Renewable Energy Development","GEF - 2","2002-09-23",6.8,18.3,25.2,2.7,"Risk Mitigation"]
[1265,"UNDP","ECA","Poland","Financially Closed","Polish Energy Efficiency Motors Programme","GEF - 2","2003-11-04",4.9,17.7,22.6,3.6,"Debt"]
[1291,"WB","ECA","Croatia","Financially Closed","Renewable Energy Resources Project","GEF - 2","2005-05-22",6.7,21.4,28.2,3.2,"Mixed"]
[1316,"WB","ECA","Hungary","Financially Closed","Energy Efficiency Co-Financing Program 2 (HEECP2)","GEF - 2","2001-10-02",0.9,93.2,94.1,99.1,"Risk Mitigation"]
[1335,"UNDP","AFR","Egypt","Project Implemented","Bioenergy for Sustainable Rural Development","GEF - 3","2008-07-13",3.6,13.3,16.9,3.6,"Debt"]
[1358,"UNEP","AFR","Zambia","Financially Closed","Renewable Energy-based Electricity Generation for Isolated Mini-grids","GEF - 3","2005-11-15",3.7,4.6,8.2,1.2,"Debt"]
[1361,"UNEP","SIDS","Cuba","Financially Closed","Generation and Delivery of Renewable Energy Based Modern Energy Services in Cuba; the case of Isla de la Juventud","GEF - 3","2005-03-20",6,10.5,16.5,1.7,"Debt"]
[1413,"UNDP","LAC","Honduras","Financially Closed","Energy Efficiency Measures in the Honduran Commercial and Industry Sectors","GEF - 3","2004-01-15",1.1,1.6,2.8,1.4,"Risk Mitigation"]
[1532,"WB","Asia","Philippines","Financially Closed","Electric Cooperative System Loss Reduction Project","GEF - 3","2004-04-11",13.6,50.5,64.1,3.7,"Risk Mitigation"]
[1541,"WB","ECA","Czech Republic, Estonia, Latvia, Lithuania, Slovak Republic, Regional","Project Implemented","Commercializing Energy Efficiency Finance (CEEF) - Tranche I","GEF - 2","2002-10-05",12.5,20.9,33.3,1.7,"Risk Mitigation"]
[1571,"WB","LAC","Belize, Bolivia, Costa Rica, Ecuador, El Salvador, Mexico, Panama, Paraguay, Peru, Regional","Financially Closed","EcoEnterprises Fund","GEF - 2","2002-04-18",1.1,9,10.1,7.9,"Debt"]
[1609,"UNEP","CEX","Belize, Cambodia, Cameroon, Costa Rica, Ghana, Guatemala, Indonesia, Nicaragua, Panama, Philippines, Tanzania, Thailand, Viet Nam, Zambia, Global","Project Implemented","Renewable Energy Enterprise Development - Seed Capital Access Facility","GEF - 3","2007-05-30",9.2,40.5,49.7,4.4,"Equity"]
[1646,"UNDP","ECA","Russian Federation","Financially Closed","Cost Effective Energy Efficiency Measures in the Russian Educational Sector","GEF - 2","2002-06-09",1.1,1.7,2.9,1.5,"Debt"]
[2000,"WB","CEX","Global","Project Implemented","Environmental Business Finance Program (EBFP)","GEF - 3","2004-03-23",20,80,100,4,"Risk Mitigation"]
[2105,"UNDP","ECA","Croatia","Financially Closed","Conservation and Sustainable Use of Biodiversity in the Dalmatian Coast through Greening Coastal Development","GEF - 3","2006-09-27",8,24.3,32.3,3.1,"Risk Mitigation"]
[2108,"WB","Asia","Philippines","Financially Closed","Electric Cooperative System Loss Reduction Project","GEF-3","2009-04-12",5.8,20,25.8,3.4,"Risk Mitigation"]
[2111,"WB","ECA","Russian Federation","Project Implemented","Russian Sustainable Energy Finance Program","GEF - 3","2005-03-16",7.6,23.3,30.9,3,"Risk Mitigation"]
[2117,"WB","ECA","Bulgaria","Financially Closed","Energy Efficiency Project","GEF - 3","2005-02-13",11.1,39.5,50.7,3.5,"Risk Mitigation"]
[2119,"UNEP","AFR","Eritrea, Ethiopia, Kenya, Rwanda, Tanzania, Uganda, Regional","Financially Closed","African Rift Geothermal Development Facility (ARGeo)","GEF - 3","2012-07-24",20.7,55.6,76.3,2.7,"Debt"]
[2174,"WB","ECA","Czech Republic, Estonia, Latvia, Lithuania, Slovak Republic, Regional","Project Implemented","Commercializing Energy Efficiency Finance (CEEF) - Tranche II","GEF - 2","2003-08-10",9.9,57,66.9,5.8,"Risk Mitigation"]
[2256,"UNDP","AFR","Namibia","Financially Closed","Barrier Removal to Namibian Renewable Energy Programme (NAMREP), Phase II","GEF - 3","2007-05-30",2.8,7.6,10.5,2.7,"Risk Mitigation"]
[2531,"WB","ECA","North Macedonia","Financially Closed","Sustainable Energy Program","GEF - 3","2006-11-26",6.4,28.8,35.2,4.5,"Debt"]
[2619,"UNEP","ECA","Belarus, Bulgaria, Kazakhstan, North Macedonia, Romania, Russian Federation, Serbia, Ukraine, Regional","Financially Closed","Financing Energy Efficiency and Renewable Energy Investments for Climate Change Mitigation","GEF - 3","2006-10-24",3.3,9.3,12.5,2.8,"Mixed"]
[2624,"WB","Asia","China","Project Implemented","China Utility-Based Energy Efficiency Finance Program (CHUEE)","GEF - 3","2006-03-09",18,130.4,148.4,7.3,"Risk Mitigation"]
[2670,"UNDP","LAC","Costa Rica, El Salvador, Guatemala, Honduras, Nicaragua, Regional","Financially Closed","Central American Markets for Biodiversity (CAMBio): Mainstreaming Biodiversity Conservation and Sustainable use within Micro, Small and Medium-sized Enterprise Development and Financing","GEF - 3","2006-03-19",11,17.8,28.8,1.6,"Risk Mitigation"]
[2939,"UNDP","CEX","Global","Financially Closed","Solar Water Heating Market Transformation and Strengthening Initiative, Phase 1","GEF - 3","2008-07-28",13.4,19.2,32.5,1.4,"Risk Mitigation"]
[2941,"UNDP","LAC","Brazil","Project Implemented","Market Transformation for Energy Efficiency in Buildings","GEF - 4","2009-07-28",15.1,64.8,79.9,4.3,"Mixed"]
[2944,"WB","SIDS","Fiji, Marshall Islands, Papua New Guinea, Solomon Islands, Vanuatu, Regional","Under Implementation","Sustainable Energy Financing","GEF - 3","2007-05-17",10.3,21.6,31.9,2.1,"Risk Mitigation"]
[3005,"IADB","LAC","Brazil, Mexico, Nicaragua, Panama, Regional","Project Implemented","CleanTech Fund","GEF - 3","2006-02-06",1.1,61.2,62.3,56.4,"Equity"]
[3558,"WB","AFR","Cabo Verde, Liberia, Senegal, Sierra Leone, Regional","Financially Closed","SP-SFIF: West Africa Regional Fisheries Program (WARFP)","GEF - 3","2009-08-31",11.5,121,132.5,10.6,"Debt"]
[3597,"EBRD","ECA","Russian Federation","Under Implementation","RUS Improving Urban Housing Efficiency in the Russian Federation","GEF - 4","2010-11-18",10.8,86.7,97.5,8,"Debt"]
[3626,"UNEP","SIDS","Marshall Islands, Micronesia, Palau, Regional","Financially Closed","PAS: The Micronesia Challenge :  Sustainable Finance Systems for Island Protected Area Management - under the GEF Pacific Alliance for Sustainability","GEF - 4","2010-05-27",6,10.9,16.9,1.8,"Debt"]
[3766,"IADB","LAC","Antigua and Barbuda, Barbados, Costa Rica, Guatemala, Guyana, Honduras, Panama,St. Lucia, Suriname, Regional","Financially Closed","Testing a Prototype Caribbean Regional Fund for Wastewater Management (CReW)","GEF - 4","2010-12-01",22.4,251.5,273.9,11.2,"Debt"]
[4176,"IADB","LAC","Chile","Project Implemented","Encouraging the Establishment and Consolidation of an Energy Service Market in Chile","GEF - 4","2010-12-07",2.6,12.9,15.5,5,"Risk Mitigation"]
[4257,"WB","CEX","Global","Project Implemented","The GEF Earth Fund: IFC Earth Fund Platform","GEF - 4","2008-08-31",32.7,90,122.7,2.8,"Mixed"]
[4348,"EBRD","ECA","Kazakhstan","Under Implementation","Reducing GHG Emissions through a Resource Efficiency Transformation Programme (ResET) for Industries in Kazakhstan","GEF - 5","2012-02-28",7.8,38.5,46.3,5,"Debt"]
[4512,"ADB","Asia","Regional","Financially Closed","Pilot Asia-Pacific Climate Technology Network and Finance Center","GEF - 5","2012-05-30",12,75,87,6.2,"Equity"]
[4626,"WB","AFR","Djibouti","Project Implemented","Geothermal Power Generation Program","GEF - 5","2013-03-11",6.6,22.5,29.1,3.4,"Debt"]
[4753,"UNIDO","Asia","Pakistan","Under Implementation","Sustainable Energy Initiative for Industries","GEF - 5","2014-04-01",4,32.7,36.7,8.2,"Mixed"]
[4784,"UNIDO","ECA","Ukraine","Under Implementation","Introduction of Energy Management System Standard in Ukrainian Industry","GEF - 5","2013-10-20",6.2,39.8,45.9,6.4,"Mixed"]
[4788,"UNIDO","Asia","India","Project Implemented","Promoting Business Models for Increasing Penetration and Scaling up of Solar Energy","GEF - 5","2013-12-22",4.9,21.8,26.7,4.5,"Mixed"]
[4801,"UNDP","Asia","Viet Nam","Project Implemented","Promotion of Non-fired Brick (NFB) Production and Utilization","GEF - 5","2014-03-10",3.2,36.1,39.3,11.3,"Debt"]
[4890,"UNIDO","LAC","Uruguay","Project Implemented","Towards a Green Economy in Uruguay: Stimulating Sustainable Production Practices and Low-emission Technologies in Prioritized Sectors","GEF - 5","2013-11-18",3.8,19.8,23.6,5.2,"Debt"]
[4918,"WB","Asia","India","Under Implementation","Partial Risk Sharing Facility for Energy Efficiency","GEF - 5","2015-02-08",19.8,594.3,614.1,30,"Risk Mitigation"]
[4929,"AfDB","AFR","Africa, Regional","Under Implementation","AfDB-PPP Public-Private Partnership Program","GEF - 5","2013-02-21",21.6,240,261.6,11.1,"Debt"]
[4957,"WB","ECA","Turkey","Project Implemented","Small and Medium Enterprise Energy Efficiency Project","GEF - 5","2013-02-21",4,252.5,256.5,63.1,"Debt"]
[4959,"IADB","LAC","Latin America and Caribbean, Regional","Under Implementation","IDB-PPP MIF Public-Private Partnership Program","GEF - 5","2013-03-27",16.2,266.3,282.5,16.4,"Equity"]
[5143,"EBRD","AFR","Egypt, Jordan, Morocco, Tunisia, Regional","Under Implementation","PPP-EBRD South Eastern Mediterranean EE/ ESCO Markets Platform (PROGRAM)","GEF - 5","2014-09-03",16.2,150,166.2,9.3,"Mixed"]
[5388,"IADB","LAC","Regional","Under Implementation","PPP-IDB Sustainable Caribbean Basin Energy Fund (PROGRAM)","GEF - 5","2016-09-01",16.2,200,216.2,12.3,"Equity"]
[5704,"UNIDO","AFR","South Africa","Under Implementation","Promoting Organic Waste-to-Energy and other Low-carbon Technologies in Small and Medium-scale Enterprises (SMMEs): Accelarating Biogas Market Development","GEF - 5","2016-01-13",4.7,25.5,30.2,5.4,"Mixed"]
[5754,"IADB","LAC","Latin America and Caribbean,Regional","Under Implementation","IDB-GEF Climate-Smart Agriculture Fund for Latin America and the Caribbean (PROGRAM)","GEF - 5","2015-03-17",5.4,50.9,56.3,9.4,"Mixed"]
[6980,"WB","CEX","Global","Financially Closed","The International Lighting Efficiency Facility (iLEF)(non-grant)","GEF - 6","2015-05-10",1.3,50.3,51.6,38.2,"Debt"]
[9043,"AfDB","AFR","Africa, Regional","Under Implementation","Investing in Renewable Energy Project Preparation under the Fund for Energy Inclusion (FEI)","GEF - 6","2018-06-13",11,955,966,87.2,"Debt"]
[9047,"EBRD","CEX","Albania, Armenia, Azerbaijan, Belarus, Bosnia-Herzegovina, Egypt, Georgia, Jordan, Moldova, Montenegro, Morocco, North Macedonia, Serbia, Tunisia, Turkey, Ukraine, Regional","Under Implementation","Green Logistics Program (non-grant)","GEF - 6","2016-02-21",16.4,155.3,171.6,9.5,"Debt"]
[9051,"AfDB","ECA","Regional","Under Implementation","Moringa Agro-forestry Fund for Africa (non-grant)","GEF - 6","2015-08-19",13.1,50.8,63.9,3.9,"Equity"]
[9058,"IADB","LAC","Latin America and Caribbean, Regional","Under Implementation","Impact Investment in Support of the Implementation of the Nagoya Protocol on Access and Benefit Sharing (non-grant)","GEF - 6","2017-01-04",11,48.3,59.3,4.4,"Equity"]
[9085,"DBSA","AFR","South Africa","CEO Endorsement Cleared","Equity Fund for the Small Projects Independent Power Producer Procurement Programme (SP-IPPPP)","GEF - 6","2017-06-08",16.6,190.5,207,11.5,"Equity"]
[9277,"IADB","LAC","Latin America and Caribbean, Regional","Under Implementation","Risk Mitigation Instrument for Land Restoration (Non-Grant)","GEF - 6","2017-09-26",16.4,120,136.4,7.3,"Risk Mitigation"]
[9370,"CI","Asia","Indonesia, Philippines, Regional","Under Implementation","(NGI) The Meloy Fund : A Fund for Sustainable Small-scale Fisheries in Southeast Asia","GEF - 6","2017-09-26",6.8,35.2,42,5.2,"Equity"]
[9563,"WB","SIDS","Seychelles","Under Implementation","Third South West Indian Ocean Fisheries Governance and Shared Growth Project (SWIOFish3)","GEF - 6","2017-06-15",11.4,54,65.4,4.7,"Risk Mitigation"]
[9719,"UNEP","CEX","Global","Under Implementation","Piloting Innovative Investments for Sustainable Landscapes","GEF - 6","2018-02-05",2.2,52,54.2,23.2,"Equity"]
[9914,"IUCN","CEX","Global","Project Implemented","CPIC Conservation Finance Initiative - Scaling up and Demonstrating the Value of Blended Finance in Conservation","GEF - 6","2019-05-06",9.2,102.8,112,11.2,"Equity"]
[10322,"CI","CEX","Global","Under Implementation","The Food Securities Fund: A fund to finance sustainable supply chains  at scale in Emerging Markets","GEF - 7","2021-09-07",15,773.3,788.3,51.6,"Equity"]
[10328,"EBRD","ECA","Albania, Bosnia-Herzegovina, Montenegro, North Macedonia, Serbia, Turkey, Regional","CEO Endorsement Cleared","Circular Economy Regional Initiative (CERI)","GEF - 7","2021-09-16",15,141.9,156.9,9.5,"Debt"]
[10330,"WB","AFR","South Africa","Under Implementation","Wildlife Conservation Bond","GEF - 7","2021-06-03",15,178.5,193.5,11.9,"Debt"]
[10336,"IADB","LAC","Argentina, Brazil, Colombia, Costa Rica, Ecuador, Guatemala, Honduras, Paraguay, Peru, Uruguay, Regional","Under Implementation","Agtech for inclusion and sustainability: SP Ventures'Regional Fund (Agventures II)","GEF - 7","2022-01-13",5.5,55,60.5,10.1,"Equity"]
[10497,"CI","CEX","Global","Under Implementation","AGRI3 A Forest Conservation and Sustainable Agriculture Fund for Developing Countries","GEF - 7","2022-10-05",15,151.5,166.5,10.1,"Equity"]
[10500,"CI","CEX","Global","CEO Endorsement Cleared","Livelihoods Carbon Fund 3 (LCF3)","GEF - 7","2023-06-02",15,111,126,7.4,"Equity"]
[10667,"AfDB","AFR","Regional","Under Implementation","COVID-19 Off-Grid Recovery Platform","GEF - 7","2022-06-07",14.4,57,71.4,4,"Debt"]
["11062*","ADB","Asia","Regional","Council Approved","Natural Capital Fund (NCF): Investing in Nature-Positive Agri-Food Enterprises in Asia and the Pacific","GEF-8","TBD",15,646.4,661.4,43.1,"Equity"]
["11064*","DBSA","AFR","South Africa","Council Approved","Private Sector Energy Efficiency Programme Phase 2 (PSEEP2)","GEF-8","TBD",16.3,509,525.3,31.2,"Risk Mitigation"]
[11066,"IADB","LAC","Regional","Under Implementation","Yield Lab Opportunity Fund I: Accelerating technology and local innovation for sustainable and decarbonized food systems in Latin America and the Caribbean.","GEF-8","2024-03-11",6.6,44,50.6,6.7,"Equity"]
["11068*","WB","Asia","India","Council Approved","Guarantee Mechanism for Renewable Biogas in India","GEF-8","TBD",15,705,720,47,"Risk Mitigation"]
["11323*","WB","Asia","Indonesia","Council Approved","Indonesia Coral Bond","GEF-8","TBD",15,156.1,171.1,10.41,"Reimbursable grant"]
["11324*","IADB","LAC","Regional","Council Approved","Innovative use of financial instruments for Biodiversity Conservation and Restoration in Latin America and the Caribbean","GEF-8","TBD",43.8,641.3,684.8,14.64,"Guarantee"]
["11326*","WB","CEX","Global","Council Approved","IFC/GEF Green Global Supply Chain Decarbonization Platform","GEF-8","TBD",16,150.1,166.1,9.38,"Debt"]
["11327*","Funbio","LAC","Brazil","Council Approved","Living Amazon Mechanism","GEF-8","TBD",6.9,46.6,53.4,6.76,"Reimbursable grant"]
["Total",{"$nulls":7},{"$f":"SUM(I3:I108)","v":{"v":1032.3000000000002,"d":"1,032"}},{"$f":"SUM(J3:J108)","v":{"v":10663.5,"d":"10,664"}},{"v":11694.999999999998,"d":"11,695"},{"$f":"J109/I109","v":{"v":10.329845975007263,"d":"10.3"}}]